Workbook

Sheet Utility Costs Summary (2017) (hidden)
A1: TOP Cost Distribution Calculator
G2: Projected Project Cost is | H2: 850 | I2: thousand
D4: Utility Cost Breakdown | G4: 16 | H4: Peak MW Load is derived from the BPA 2014 FERC-714 Power System Report
H5: Toggle | I5: Utility Customers | J5: Line Segments | K5: Buses | L5: Peak MW Load | M5: Share of TOP Cost
H6: FALSE | I6: Benton County PUD No. 1 | J6: =VLOOKUP(I6,'Asset List'!$B$3:$Q$113,14,0) -> 0 | K6: =VLOOKUP(I6,'Asset List'!$B$3:$Q$113,16,0) -> 0 | L6: 429.2 | M6: =IF(H6,$D$12+$D$19*J6+$D$20*K6+$D$15*L6,0) -> 0
H7: FALSE | I7: Clark Public Utilities | J7: =VLOOKUP(I7,'Asset List'!$B$3:$Q$113,14,0) -> 15 | K7: =VLOOKUP(I7,'Asset List'!$B$3:$Q$113,16,0) -> 11 | L7: 1033 | M7: 0
H8: TRUE | I8: Cowlitz County PUD No. 1 | J8: =VLOOKUP(I8,'Asset List'!$B$3:$Q$113,14,0) -> 15 | K8: =VLOOKUP(I8,'Asset List'!$B$3:$Q$113,16,0) -> 26 | L8: 742.1 | M8: 239243.9224
H9: FALSE | I9: Eugene Water and Electric Board | J9: =VLOOKUP(I9,'Asset List'!$B$3:$Q$113,14,0) -> 38 | K9: =VLOOKUP(I9,'Asset List'!$B$3:$Q$113,16,0) -> 32 | L9: 498 | M9: 0
H10: TRUE | I10: Grays Harbor County PUD No. 1 | J10: =VLOOKUP(I10,'Asset List'!$B$3:$Q$113,14,0) -> 1 | K10: =VLOOKUP(I10,'Asset List'!$B$3:$Q$113,16,0) -> 2 | L10: 261.6 | M10: 61638.1361
H11: TRUE | I11: Klickitat County PUD No. 1 | J11: =VLOOKUP(I11,'Asset List'!$B$3:$Q$113,14,0) -> 7 | K11: =VLOOKUP(I11,'Asset List'!$B$3:$Q$113,16,0) -> 7 | L11: 77.9 | M11: 92430.94322
C12: Utility Base Charge: | D12: 30000 | E12: =CONCATENATE("(or ",ROUND((D12*COUNTIF(H6:H20,TRUE))/(H2*1000)*100,0),"% of utility cost)") -> (or 35% of utility cost) | H12: TRUE | I12: Lower Valley Energy | J12: =VLOOKUP(I12,'Asset List'!$B$3:$Q$113,14,0) -> 8 | K12: =VLOOKUP(I12,'Asset List'!$B$3:$Q$113,16,0) -> 5 | L12: 174 | M12: 100121.1146
H13: TRUE | I13: Lewis County PUD No. 1 | J13: =VLOOKUP(I13,'Asset List'!$B$3:$Q$113,14,0) -> 2 | K13: =VLOOKUP(I13,'Asset List'!$B$3:$Q$113,16,0) -> 2 | L13: 232.8 | M13: 64685.59805
C14: Utility Load Charge: | D14: 0.2 | E14: of the total utility cost | H14: TRUE | I14: Northern Wasco | J14: =VLOOKUP(I14,'Asset List'!$B$3:$Q$113,14,0) -> 1 | K14: =VLOOKUP(I14,'Asset List'!$B$3:$Q$113,16,0) -> 1 | L14: 102.3 | M14: 46214.48044
D15: =(H2*1000*D14)/(SUMIF(H6:H20,"TRUE",L6:L20)) -> 80.02259461 | E15: per MW | H15: TRUE | I15: Okanogan County PUD No. 1 | J15: =VLOOKUP(I15,'Asset List'!$B$3:$Q$113,14,0) -> 5 | K15: =VLOOKUP(I15,'Asset List'!$B$3:$Q$113,16,0) -> 3 | L15: 167 | M15: 78152.5057
H16: TRUE | I16: Pend Oreille County PUD No. 1 | J16: =VLOOKUP(I16,'Asset List'!$B$3:$Q$113,14,0) -> 4 | K16: =VLOOKUP(I16,'Asset List'!$B$3:$Q$113,16,0) -> 5 | L16: 116 | M16: 74071.35337
C17: Line & Bus Charge: | D17: =CONCATENATE("Remaining ",ROUND(100*((H2*1000)-(D12*COUNTIF(H6:H20,TRUE))-(D14*H2*1000))/(H2*1000),0),"% of the total utility cost") -> Remaining 45% of the total utility cost | H17: FALSE | I17: Snohonomish County PUD | J17: =VLOOKUP(I17,'Asset List'!$B$3:$Q$113,14,0) ->  | K17: =VLOOKUP(I17,'Asset List'!$B$3:$Q$113,16,0) ->  | L17: 1466 | M17: 0
C18: Cost per bus section is | D18: 0.5 | E18: of the cost per line segment | H18: FALSE | I18: Springfield Utility Board | J18: =VLOOKUP(I18,'Asset List'!$B$3:$Q$113,14,0) -> 11 | K18: =VLOOKUP(I18,'Asset List'!$B$3:$Q$113,16,0) -> 7 | L18: 179.8 | M18: 0
D19: =((H2*1000)-(D12*COUNTIF(H6:H20,TRUE))-(D14*H2*1000))/(SUMIF(H6:H20,TRUE,J6:J20)+D18*SUMIF(H6:H20,TRUE,K6:K20)) -> 5352.112676 | E19: per line segment | H19: TRUE | I19: Umatilla Electric Cooperative | J19: =VLOOKUP(I19,'Asset List'!$B$3:$Q$113,14,0) -> 1 | K19: =VLOOKUP(I19,'Asset List'!$B$3:$Q$113,16,0) -> 0 | L19: 222 | M19: 53117.12868
D20: =D19*D18 -> 2676.056338 | E20: per bus | H20: TRUE | I20: Whatcom County PUD No. 1 | J20: =VLOOKUP(I20,'Asset List'!$B$3:$Q$113,14,0) -> 1 | K20: =VLOOKUP(I20,'Asset List'!$B$3:$Q$113,16,0) -> 1 | L20: 28.7 | M20: 40324.81748
I23: View cost breakdown for: | J23: Umatilla Electric Cooperative
K28: =CONCATENATE("Cost Breakdown for ",J23) -> Cost Breakdown for Umatilla Electric Cooperative
J29: Utility Base | K29: =D12 -> 30000
J30: Per Line | K30: =(D19*VLOOKUP(J23,I6:M20,2,0)) -> 5352.112676
C31: Utility Base | D31: =D12*COUNTIF(H6:H20,"TRUE")/(1000000*H2) -> 0.0003529411765 | J31: Per Bus | K31: =(D20*VLOOKUP(J23,I6:M20,3,0)) -> 0
C32: Per Line | D32: =D19*SUMIF(H6:H20,"TRUE",J6:J20)/(1000000*H2) -> 0.0002833471417 | J32: Utility Load | K32: =(D15*VLOOKUP(J23,I6:M20,4,0)) -> 17765.016
C33: Per Bus | D33: =D20*SUMIF(H6:H20,"TRUE",K6:K20)/(1000000*H2) -> 0.0001637116819
C34: Utility Load | D34: =D15*SUMIF(H6:H20,"TRUE",L6:L20)/(1000000*H2) -> 0.0002

Sheet Utility Costs Summary (2020)
A1: 2022 TP Cost Distribution Calculator
G2: Projected Resource Cost = | H2: 306 | I2: thousand
G3: Adjustment from the 2021 year = | I3: thousand
G4: 2022 Projected Project Cost = | H4: =H2-H3 -> 306 | I4: thousand
D6: Utility Cost Breakdown | G6: 16 | H6: Peak MW Load is derived from the BPA (6/2021) FERC-714 Power System Report
H7: Toggle | I7: Utility Customers | J7: Line Segments | K7: Buses | L7: Peak MW Load | M7: Share of TP Cost
H8: TRUE | I8: Klickitat County PUD No. 1 | J8: 7 | K8: 7 | L8: 80 | M8: =IF(H8,$D$14+$D$21*J8+$D$22*K8+$D$17*L8,0) -> 49512.40899
H9: TRUE | I9: Lewis County PUD No. 1 | J9: 2 | K9: 2 | L9: 178 | M9: 34358.10999
H10: TRUE | I10: Northern Wasco | J10: 1 | K10: 1 | L10: 138 | M10: 28501.9055
H11: TRUE | I11: Pend Oreille County PUD No. 1 | J11: 4 | K11: 5 | L11: 133 | M11: 41464.87994
H12: TRUE | I12: Umatilla Electric Cooperative | J12: 5 | K12: 3 | L12: 576 | M12: 62465.34469
H13: TRUE | I13: Whatcom County PUD No. 1 | J13: 1 | K13: 1 | L13: 29 | M13: 23334.74826
C14: Utility Base Charge: | D14: 18000 | E14: =CONCATENATE("(or ",ROUND((D14*COUNTIF(H8:H14,TRUE))/(H4*1000)*100,0),"% of utility cost)") -> (or 41% of utility cost) | H14: TRUE | I14: Lower Valley Energy | J14: 10 | K14: 11 | L14: 157 | M14: 66362.60263
C16: Utility Load Charge: | D16: 0.2 | E16: of the total utility cost | I16: View cost breakdown for: | J16: Klickitat County PUD No. 1
D17: =(H4*1000*D16)/(SUMIF(H8:H14,"TRUE",L8:L14)) -> 47.40511232 | E17: per MW
C19: Line & Bus Charge: | D19: =CONCATENATE("Remaining ",ROUND(100*((H4*1000)-(D14*COUNTIF(H8:H14,TRUE))-(D16*H4*1000))/(H4*1000),0),"% of the total utility cost") -> Remaining 39% of the total utility cost
C20: Cost per bus section is | D20: 0.5 | E20: of the cost per line segment
D21: =((H4*1000)-(D14*COUNTIF(H8:H14,TRUE))-(D16*H4*1000))/(SUMIF(H8:H14,TRUE,J8:J14)+D20*SUMIF(H8:H14,TRUE,K8:K14)) -> 2640 | E21: per line segment | K21: =CONCATENATE("Cost Breakdown for ",J16) -> Cost Breakdown for Klickitat County PUD No. 1
D22: =D21*D20 -> 1320 | E22: per bus | J22: Utility Base | K22: =D14 -> 18000
J23: Per Line | K23: =(D21*VLOOKUP(J16,I8:M14,2,0)) -> 18480
J24: Per Bus | K24: =(D22*VLOOKUP(J16,I8:M14,3,0)) -> 9240
J25: Utility Load | K25: =(D17*VLOOKUP(J16,I8:M14,4,0)) -> 3792.408985
C33: Utility Base | D33: =D14*COUNTIF(H8:H13,"TRUE")/(1000000*H4) -> 0.0003529411765
C34: Per Line | D34: =D21*SUMIF(H8:H13,"TRUE",J8:J13)/(1000000*H4) -> 0.0001725490196
C35: Per Bus | D35: =D22*SUMIF(H8:H13,"TRUE",K8:K13)/(1000000*H4) -> 8.196078431e-05
C36: Utility Load | D36: =D17*SUMIF(H8:H13,"TRUE",L8:L13)/(1000000*H4) -> 0.0001756777692

Sheet Sheet1 (hidden)
A1: customer | B1: lines | C1: lines total | D1: bus | E1: bus total | F1: load | G1: load total | H1: Base | I1: Total charge | J1: monthly charge
A2: klick | B2: 7 | C2: =B2*4770 -> 33390 | D2: 7 | E2: =D2*2385 -> 16695 | F2: 79 | G2: =F2*60.35 -> 4767.65 | H2: 18000 | I2: =C2+E2+G2+H2 -> 72852.65 | J2: =I2/12 -> 6071.054167
A3: Lewis | B3: 2 | C3: =B3*4770 -> 9540 | D3: 2 | E3: =D3*2385 -> 4770 | F3: 223 | G3: 13458.05 | H3: 18000 | I3: =C3+E3+G3+H3 -> 45768.05 | J3: =I3/12 -> 3814.004167
A4: N. Wasco | B4: 1 | C4: 4770 | D4: 1 | E4: 2385 | F4: 111 | G4: 6698.85 | H4: 18000 | I4: 31853.85 | J4: 2654.4875
A5: POPUD | B5: 4 | C5: 19080 | D5: 5 | E5: 11925 | F5: 156 | G5: 9414.6 | H5: 18000 | I5: 58419.6 | J5: 4868.3
A6: UEC | B6: 3 | C6: 14310 | D6: 2 | E6: 4770 | F6: 403 | G6: =F6*60.35 -> 24321.05 | H6: 18000 | I6: 61401.05 | J6: 5116.754167
A7: Whatcom | B7: 1 | C7: 4770 | D7: 1 | E7: 2385 | F7: 28 | G7: =F7*60.35 -> 1689.8 | H7: 18000 | I7: 26844.8 | J7: 2237.066667
I8: =SUM(I2:I7) -> 297140
A13: customer | B13: lines | C13: lines total | D13: bus | E13: bus total | F13: load | G13: load total | H13: Base | I13: Total charge | J13: monthly charge
A14: Okanagon | B14: 5 | C14: =B14*4770 -> 23850 | D14: 3 | E14: =D14*2385 -> 7155 | F14: 142 | G14: =F14*60.35 -> 8569.7 | H14: 18000 | I14: =C14+E14+G14+H14 -> 57574.7 | J14: =I14/12 -> 4797.891667

Sheet Asset List (hidden)
B1: Customer | C1: Contract No. | D1: Registration Status | E1: Path | F1: Line Segment | G1: Buses | J1: Breakers | K1: Disconnects | L1: BES (Y/N) | M1: BES Team Comment | N1: Line Segment Count | O1: Line Segment Count | P1: Bus Section Count | Q1: Bus Section Count | R1: Customer Perspective
A2: Included in TOP | F2: Line Segments | G2: Buses | H2: Reactive device | I2: Disconnect Switches | J2: Transformers | K2: Breakers/CS | R2: Customer Perspective
A3: 1 | B3: Clark Public Utilities | C3: N/A | D3: DP, GO, GOP TO, TOP | E3: 1. Ross - Hazel Dell 115 kV | F3: Ross-Hazel Dell 115kV | G3: Hazel Dell 115 kV | I3: ? | J3: Y | L3: Y | N3: =IF(F3="",0,LEN(F3)-LEN(SUBSTITUTE(F3,",",""))+1) -> 1 | O3: =SUMIF(B:B,B3,N:N) -> 15 | P3: =IF(G3="",0,LEN(G3)-LEN(SUBSTITUTE(G3,",",""))+1) -> 1 | Q3: =SUMIF(B:B,B3,P:P) -> 11 | R3: Since they have been their own TOP, they may want to maintain some functional operation consistant with what they do today. This will be determined as we work through the TOP requirement checklist.
A4: 1 | B4: Clark Public Utilities | C4: N/A | D4: DP, GO, GOP TO, TOP | E4: 2. Alcoa - River Road - Fruit Valley Tap 115 kV | F4: Alcoa – River Road 115 kV, River Road - Fruit Valley Tap 115 kV | G4: River Road 115 kV | I4: ? | J4: Y | L4: Y | N4: 2 | O4: 15 | P4: 1 | Q4: 11
A5: 1 | B5: Clark Public Utilities | C5: N/A | D5: DP, GO, GOP TO, TOP | E5: 3. Sifton 2 – Alcoa 115 kV | F5: Sifton 2 – 119th St. 115kV, 119th St. – Cherry Grove 115kV, Cherry Grove - Pioneer 115kV, Pioneer- Alcoa 115 kV | G5: 119th St. 115 kV, Cherry Grove 115 kV, Pioneer 115 kV | J5: Y | L5: Y | N5: 4 | O5: 15 | P5: 3 | Q5: 11
A6: 1 | B6: Clark Public Utilities | C6: N/A | D6: DP, GO, GOP TO, TOP | E6: 4. Sifton 1 - Silicon - Sifton 3 115 kV | F6: Sifton 1 – Silicon 115kV, Silicon – Sifton 3 115kV | G6: Silicon 115 kV | I6: ? | J6: Y | L6: Y | N6: 2 | O6: 15 | P6: 1 | Q6: 11
A7: 1 | B7: Clark Public Utilities | C7: N/A | D7: DP, GO, GOP TO, TOP | E7: 5. Sifton 5 – Lacamas - Wafertech - Runyan - Ast -Sifton 4 115 kV | F7: Sifton 5 – Lacamas 115 kV, Lacamas - Wafertech 115 kV, Wafertech - Runyan 115 kV, Runyan - Joe Ast 115 kV, Joe Ast - Sifton 4 115 kV | G7: Lacamas 115 kV, Wafertech 115 kV, Runyan 115 kV, Joe Ast 115 kV | I7: ? | J7: Y | L7: Y | N7: 5 | O7: 15 | P7: 4 | Q7: 11
A8: 1 | B8: Clark Public Utilities | C8: N/A | D8: DP, GO, GOP TO, TOP | E8: 6. Runyan - Troutdale 115 kV | F8: Runyan - Troutdale 115 kV | I8: ? | J8: Y | L8: Y | N8: 1 | O8: 15 | P8: 0 | Q8: 11
A9: 1 | B9: Clark Public Utilities | C9: N/A | D9: DP, GO, GOP TO, TOP | E9: 7. North Camas 115 kV Substation | G9: North Camas 115 kV | I9: ? | J9: Y | L9: Y | N9: 0 | O9: 15 | P9: 1 | Q9: 11
A10: 1 | B10: Cowlitz County PUD No. 1 | C10: 17TP-11235 | D10: DP, GO,GOP, LSE, TO | E10: Lexington (BPA) - Shawnee (CPUD) | F10: Lexington - Shawnee 115kV | G10: Shawnee 115kV (CPUD) | J10: CS-115B1 (CPUD) | K10: 115B1-LD (CPUD) | L10: Y | N10: 1 | O10: 15 | P10: 1 | Q10: 26 | R10: No change to daily operations, except what would be required for BPA compliance
A11: 1 | B11: Cowlitz County PUD No. 1 | C11: 17TP-11235 | D11: DP, GO,GOP, LSE, TO | E11: Shawnee (CPUD) - East Kelso (CPUD) | F11: Shawnee - East Kelso 115kV | G11: Shawnee 115kV (CPUD), East Kelso 115 kV (CPUD) | J11: 115B2 (CPUD), 115K1 (CPUD) | K11: 115B2-LD (CPUD), 115B2-BD (CPUD), 115k1-LD (CPUD), 115k1-BD (CPUD) | L11: Y | N11: 1 | O11: 15 | P11: 2 | Q11: 26
A12: 1 | B12: Cowlitz County PUD No. 1 | C12: 17TP-11235 | D12: DP, GO,GOP, LSE, TO | E12: East Kelso (CPUD) - Soucth Kelso (CPUD) | F12: East Kelso - South Kelso 115kV | G12: East Kelso 115kV (CPUD), South kelso 115kV (CPUD) | J12: 115K2 (CPUD), 115K3 (CPUD) | K12: 115K2-LD (CPUD), 115K2-BD (CPUD), 115SK3-BD (CPUD) | L12: Y | N12: 1 | O12: 15 | P12: 2 | Q12: 26
A13: 1 | B13: Cowlitz County PUD No. 1 | C13: 17TP-11235 | D13: DP, GO,GOP, LSE, TO | E13: South Kelso (CPUD) - Carrolls (CPUD) | F13: South Kelso - Cardwell 115kV | G13: South Kelso 115kV (CPUD), Carrolls 115kV (CPUD) | J13: 115SK1 (CPUD), CS-115S1 (CPUD) | K13: 115SK1-BED-BD (CPUD), 115S1-LD (CPUD) | L13: Y | N13: 1 | O13: 15 | P13: 2 | Q13: 26
A14: 1 | B14: Cowlitz County PUD No. 1 | C14: 17TP-11235 | D14: DP, GO,GOP, LSE, TO | E14: Carrolls (CPUD) - Cardwell (BPA) | F14: South Kelso - Cardwell 11 5kV | G14: Carrolls 115kV (CPUD) | J14: CS-115S2 (CPUD) | K14: 115S2-LD (CPUD) | L14: Y | N14: 1 | O14: 15 | P14: 1 | Q14: 26
A15: 1 | B15: Cowlitz County PUD No. 1 | C15: 17TP-11235 | D15: DP, GO,GOP, LSE, TO | E15: Longview (BPA) - Washington Way (CPUD) | G15: Washington Way - 7th Ave 115kV (CPUD) | J15: 115W1 (CPUD) | K15: 115W1-LD (CPUD), 115W1-BD (CPUD) | L15: Y | N15: 0 | O15: 15 | P15: 1 | Q15: 26
A16: 1 | B16: Cowlitz County PUD No. 1 | C16: 17TP-11235 | D16: DP, GO,GOP, LSE, TO | E16: Washington Way (CPUD) - 7th Ave (CPUD) | F16: Washington Way - 7th Ave 115kV | G16: Washington Way - 7th Ave 115kV (CPUD) | J16: 115W2 (CPUD), 115H2 (CPUD) | K16: 115W2-LD (CPUD), 115W2-BD (CPUD), 115H2-LD (CPUD), 115H2-BD (CPUD | L16: Y | N16: 1 | O16: 15 | P16: 1 | Q16: 26
A17: 1 | B17: Cowlitz County PUD No. 1 | C17: 17TP-11235 | D17: DP, GO,GOP, LSE, TO | E17: 7th Ave (CPUD) - Cowlitz (BPA) | F17: 7th Ave - Cowlitz 115kV | G17: 7th Ave - Cowlitz 115kV (CPUD) | J17: 115H1 (CPUD) | K17: 115H1-LD (CPUD), 115H1-BD (CPUD, 115C6 N.O. (CPUD) at Columbia Way | L17: Y | N17: 1 | O17: 15 | P17: 1 | Q17: 26
A18: 1 | B18: Cowlitz County PUD No. 1 | C18: 17TP-11235 | D18: DP, GO,GOP, LSE, TO | E18: 7th Ave (CPUD) - East Kelso (CPUD) | F18: 7th Ave - East Kelso 115kV | G18: 7th Ave 115kV (CPUD), East Kelso 115kV (CPUD) | J18: 115H3 (CPUD), 115K5 (CPUD) | K18: 115H3-LD (CPUD), 115H3-BD (CPUD), 115K5-LD (CPUD), 115K5-BD (CPUD) | L18: Y | N18: 1 | O18: 15 | P18: 2 | Q18: 26
A19: 1 | B19: Cowlitz County PUD No. 1 | C19: 17TP-11235 | D19: DP, GO,GOP, LSE, TO | E19: Longview (BPA) - Mint Farm (CPUD) | F19: Longview - Mint Farm 115kV | G19: Mint Farm 115kV (CPUD | J19: 115MF1 (CPUD) | K19: 115MF1-LD (CPUD), 115MF1-BD (CPUD) | L19: Y | N19: 1 | O19: 15 | P19: 1 | Q19: 26
A20: 1 | B20: Cowlitz County PUD No. 1 | C20: 17TP-11235 | D20: DP, GO,GOP, LSE, TO | E20: Mint Farm (CPUD) - Olive Way (CPUD) | F20: Mint Farm - Olive Way 115kV | G20: Mint Farm 115kV (CPUD, Olive Way 115kV (CPUD) | J20: 115MF3 (CPUD), 115L2 (CPUD) | K20: 115MF3-LD (CPUD), 115MF3-BD (CPUD), 115L2-LD (CPUD), 115L2-BD (CPUD) | L20: Y | N20: 1 | O20: 15 | P20: 2 | Q20: 26
A21: 1 | B21: Cowlitz County PUD No. 1 | C21: 17TP-11235 | D21: DP, GO,GOP, LSE, TO | E21: Olive Way (CPUD) - 20th & Ocean Beach (CPUD) | F21: Olive Way - 20th & Ocean Beach 115kV | G21: Olive Way 115kV (CPUD), Ocean Beach 115kV (CPUD) | J21: 115L1 (CPUD), 115E1 (CPUD) | K21: 115E2-LD (CPUD), 115E2-BD (CPUD), 115J1-LD (CPUD), 115J2-BD (CPUD) | L21: Y | N21: 1 | O21: 15 | P21: 2 | Q21: 26
A22: 1 | B22: Cowlitz County PUD No. 1 | C22: 17TP-11235 | D22: DP, GO,GOP, LSE, TO | E22: 20th & Ocean Beach (CPUD) - West Kelso (CPUD) | F22: 20th & Ocean Beach - West Kelso 115kV | G22: 20th & Ocean Beach 115kV (CPUD), West Kelso 115kV (CPUD) | J22: 115E2 (CPUD), 115J1 (CPUD) | K22: 115E2-LD (CPUD), 115E2-BD (CPUD), 115J1-LD (CPUD), 115J1-BD (CPUD) | L22: Y | N22: 1 | O22: 15 | P22: 2 | Q22: 26
A23: 1 | B23: Cowlitz County PUD No. 1 | C23: 17TP-11235 | D23: DP, GO,GOP, LSE, TO | E23: West Kelso (CPUD) - East Kelso (CPUD) | F23: West Kelso - East Kelso 115kV | G23: West Kelso 115kV (CPUD), East Kelso 115kV (CPUD) | J23: 115J3 (CPUD), 115K6 (CPUD) | K23: 115J3-LD (CPUD), 115J3-BD (CPUD), 115K6-LD (CPUD), 115K6-BD (CPUD) | L23: Y | N23: 1 | O23: 15 | P23: 2 | Q23: 26
A24: 1 | B24: Cowlitz County PUD No. 1 | C24: 17TP-11235 | D24: DP, GO,GOP, LSE, TO | E24: Bakers Corner Tap (CPUD) to Lexington - Longview #1 115kV Line (BPA) | F24: Bakers Corner Tap to Lexington - Longview #1 115kV | G24: Bakers Corner 115kV (CPUD) | J24: 115T2 (CPUD) | K24: 115T2-LD (CPUD), 115T2-BD (CPUD) | L24: Y | N24: 1 | O24: 15 | P24: 1 | Q24: 26
A25: 1 | B25: Cowlitz County PUD No. 1 | C25: 17TP-11235 | D25: DP, GO,GOP, LSE, TO | E25: Bakers Corner (CPUD) - Olive Way (CPUD) | F25: Olive Way - Bakers Corner 115kV | G25: Bakers Corner 115kV (CPUD), Olive Way 115kV (CPUD) | J25: 115T3 (CPUD), 115L6 (CPUD) | K25: 115T3-LD (CPUD), 115T3-BD (CPUD), 115L6-LD (CPUD), 115L6-BD (CPUD) | L25: Y | N25: 1 | O25: 15 | P25: 2 | Q25: 26
A26: 1 | B26: Cowlitz County PUD No. 1 | C26: 17TP-11235 | D26: DP, GO,GOP, LSE, TO | E26: Pacific Way substation loop-in (CPUD) on Lexington - Longview #1 115kV line (BPA) | G26: Pacific Way 115kV (CPUD) | J26: CS--115PW1 (CPUD), CS-115PW2 (CPUD) | K26: 115PW1-LD (CPUD), 115PW2-LD (CPUD) | L26: Y | N26: 0 | O26: 15 | P26: 1 | Q26: 26
A27: 1 | B27: Grays Harbor County PUD No. 1 | C27: 17TP-11228 | D27: DP, LSE, TO | E27: Cosmopolis- Aberdeen No.1 115 kV line | F27: Cosmopolis- Aberdeen No. 1 115kV Line (GH) | L27: Y | M27: Brightlined | N27: 1 | O27: 1 | P27: 0 | Q27: 2 | R27: No change to daily operations, except what would be required for BPA compliance
A28: 1 | B28: Grays Harbor County PUD No. 1 | C28: N/A | D28: DP, LSE, TO | E28: Olympia Substation to Cosmopolis Substation 115 kV | F28: Olympia-South EIma No. 1 115kV line (BPA) | G28: South EIma (GH) | J28: SE115-3 (GH) | K28: 2442 (GH) | L28: Y | M28: Brightline | O28: 1 | P28: 1 | Q28: 2
A29: 1 | B29: Grays Harbor County PUD No. 1 | C29: N/A | D29: DP, LSE, TO | E29: OlympiaSubstation to Cosmopolis Substation 115 kV | F29: South Elma- Satsop Park No.1 115kV (BPA) | G29: Satsop Park (GH) | J29: SE 115-4 (GH), SP115-1 (GH) | K29: 2447 (GH), 2500 (GH), 2510 (GH), 2520 (GH) | L29: Y | M29: Brightline | O29: 1 | P29: 1 | Q29: 2
A30: 1 | B30: Grays Harbor County PUD No. 1 | E30: Olympia Substation to Cosmopolis Substation 115 kV | F30: Satsop Park- Cosmopolis No.1 115kV (BPA) | J30: SP115-2 (GH) | K30: 2530 (GH), 2540 (GH), 2550 (GH) | O30: 1 | P30: 0 | Q30: 2
A31: 1 | B31: Klickitat County PUD No. 1 | C31: 17TX-16478 | E31: Harvalum – Linden Switchyard (KPUD) | F31: Harvalum – Linden Switchyard 230 kV line (KPUD) | G31: Linden Switchyard (LSY) 230 kV (KPUD) | J31: LSY PCB 230-1 (KPUD), LSY PCB 230-2 (KPUD), LSY PCB 230-3 (KPUD) | K31: LSY SW 230-1W (KPUD), LSY SW 230-2E (KPUD), LSY SW 230-2W (KPUD), LSY SW 230-3E (KPUD), LSY SW 230-3W (KPUD), LSY SW 230-4 (KPUD) | L31: Y | M31: Qualifying wind generation (EEClouse 65MW + Goldendale) included under I4 | N31: 1 | O31: 7 | P31: 1 | Q31: 7 | R31: No change to daily operations, except what would be required for BPA compliance
A32: 1 | B32: Klickitat County PUD No. 1 | C32: 17TX-16478 | E32: Linden Switchyard (KPUD) – EE Clouse (KPUD) | F32: Linden Switchyard – EE Clouse 230 kV line (KPUD) | G32: EE Clouse (EEC) 230 kV (KPUD) | J32: EEC- PCB 230-1 (KPUD), EEC- PCB 230-2 (KPUD) | K32: EEC SW 230-1W (KPUD), EEC SW 230-2E (KPUD), EEC SW 230-1E (KPUD), EEC SW 230-2W (KPUD) | L32: Y | M32: Qualifying wind generation included under I4 | N32: 1 | O32: 7 | P32: 1 | Q32: 7
A33: 1 | B33: Klickitat County PUD No. 1 | C33: 17TX-16478 | E33: Rock Creek – White Creek (KPUD) | F33: Rock Creek – White Creek 230 kV line (KPUD) | G33: White Creek (WCR) 230 kV (KPUD), White Creek (WCR) 34.5kV (KPUD) | J33: WCR PCB 230-3 (KPUD), WCR PCB 230-4 (KPUD), WCR PCB 230-1 (KPUD), WCR PCB 230-6 (KPUD) | K33: WCR SW 230-0W (KPUD), WCR SW 230-3S (KPUD), WCR SW 230-4N (KPUD), WCR SW 230-1S (KPUD), WCR SW 230-6N (KPUD) | L33: Y | M33: Qualifying wind generation included under I4 | N33: 1 | O33: 7 | P33: 2 | Q33: 7
A34: 1 | B34: Klickitat County PUD No. 1 | C34: 17TX-16478 | E34: White Creek (KPUD) – Harvest Wind (KPUD) | F34: White Creek – Harvest Wind 230 kV line (KPUD) | G34: Harvest Wind (HVW) 230 kV (KPUD) | J34: HVW PCB 230-1 (KPUD) | K34: HVW SW 230-1N (KPUD) | L34: Y | M34: Qualifying wind generation included under I4 | N34: 1 | O34: 7 | P34: 1 | Q34: 7
A35: 1 | B35: Klickitat County PUD No. 1 | C35: 17TX-16478 | E35: Rock Creek - Energizer (KPUD) | F35: Rock Creek – Energizer 230 kV line (KPUD) | G35: Energizer (ENR) 230 kV (KPUD) | J35: ENR PCB 230-1 (KPUD), ENR PCB 230-3 (KPUD) | K35: ENR SW 230-2N (KPUD), ENR SW 230-1S (KPUD), ENR SW 230-3W (KPUD) | L35: Y | M35: Qualifying wind generation included under I4 | N35: =IF(F35="",0,LEN(F35)-LEN(SUBSTITUTE(F35,",",""))+1) -> 1 | O35: =SUMIF(B:B,B35,N:N) -> 7 | P35: =IF(G35="",0,LEN(G35)-LEN(SUBSTITUTE(G35,",",""))+1) -> 1 | Q35: =SUMIF(B:B,B35,P:P) -> 7
A36: 1 | B36: Klickitat County PUD No. 1 | C36: 17TX-16478 | E36: Energizer (KPUD) – Willis (KPUD) | F36: Energizer – Willis 230 kV line (KPUD) | G36: Willis (WLS) 230 kV (KPUD) | J36: WLS PCB 230-3 (KPUD), WLS PCB 230-1 (KPUD) | K36: WLS SW 230-2N (KPUD), WLS SW 230-1S (KPUD), WLS SW 230-3W (KPUD) | L36: Y | N36: 1 | O36: 7 | P36: 1 | Q36: 7 | R36: No change to daily operations, except what would be required for BPA compliance
A37: 1 | B37: Klickitat County PUD No. 1 | C37: 17TX-16478 | E37: Willis (KPUD)- Dooley (KPUD) | F37: Willis – Dooley 230 kV line (KPUD) | G37: Dooley (DLY) 230 kV (WPP) | J37: DLY PCB 230-3 (WPP), DLY PCB 230-4 (WPP) | K37: DLY SW 230-1N (KPUD), DLY SW 230-3N (WPP), DLY SW 230-4N (WPP) | N37: 1 | O37: 7 | Q37: 7
A38: 1 | B38: Lewis County PUD No. 1 | C38: 17TP-11251 | D38: GO, GOP, TO | E38: Cowlitz Falls-Glenoma (LCPUD) | F38: Cowlitz Falls-Glenoma (LCPUD) | G38: Cowlitz Falls 230 kV (LCPUD) | J38: 230-35 (LCPUD), 152-1 Unit 1 (LCPUD), 152-2 Unit 2 (LCPUD) | K38: 230-36, 230-34, 230-37 (LCPUD), 189-1, 189-2, 189-3 (LCPUD) | L38: Y | M38: Qualifying generation - included under I2 | N38: 1 | O38: 2 | P38: 1 | Q38: 2
A39: 1 | B39: Lewis County PUD No. 1 | C39: N/A | D39: GO, GOP, TO | E39: Glenoma-Mossyrock (LCPUD) | F39: Glenoma-Mossyrock (LCPUD) | G39: Glenoma 230 kV (LCPUD) | J39: 230-31 (LCPUD) | K39: 230-10M (LCPUD), 230-30, 230-32, 230-37 (LCPUD) | L39: Y | M39: Qualifying generation - included under I2 | N39: 1 | O39: 2 | P39: 1 | Q39: 2 | R39: No change to daily operations, except what would be required for BPA compliance
A40: 1 | B40: Lower Valley Energy | C40: 17TP-11252 | E40: Palisades – Snake River 115 kV | F40: Palisades – Snake River 115 kV (LVE) | G40: Snake River 115 kV (LVE) | J40: SP741 (LVE), 762 (USBR) | K40: SP721 (LVE), SP722 (LVE), 761 (USBR), 763 (USBR) | L40: Y | M40: Line leased to BPA, Snake River substation 50% leased to BPA | N40: 1 | O40: 8 | P40: 1 | Q40: 5
A41: 1 | B41: Lower Valley Energy | E41: Snake River – Tincup 115 kV (LVE) | F41: Snake River – Tincup 115 kV (LVE) | G41: Tincup 115 kV (LVE) | J41: TS842 (LVE), ST743 (LVE) | K41: TS725 (LVE), T724 (LVE), ST725 (LVE), ST727 (LVE) | L41: Y | N41: 1 | O41: 8 | P41: 1 | Q41: 5
A42: 1 | B42: Lower Valley Energy | E42: Snake River – Dry Creek 115 kV (LVE) | F42: Snake River – Freedom115 kV (LVE) | G42: Dry Creek 115 kV (LVE) | J42: DF841 (LVE), SF744 (LVE) | K42: DF827 (LVE), DF828 (LVE), F725, FS721, SF730 (LVE), SF731 (LVE), F726, FD722, FS723, FD724 | L42: Y | N42: 1 | O42: 8 | P42: 1 | Q42: 5
A43: 1 | B43: Lower Valley Energy | E43: Dry Creek – Tincup 115 kV (LVE) | F43: Dry Creek – Valley 115 kV (LVE) | J43: TL743, DV742 (LVE) | K43: TL730 (LVE), TL731 (LVE), DV730 (LVE), DV731 (LVE), VD881, VL882, LV824, L823, LV821 | L43: Y | N43: 1 | O43: 8 | Q43: 5
A44: 1 | B44: Lower Valley Energy | E44: Snake River – Jackson 115 kV (LVE) | F44: Snake River – Hoback 115 kV (LVE) | G44: Jackson 115 kV (LVE) | J44: JR743 (LVE), SH742 | K44: JR727 (LVE), JR728 (LVE), HS782, SH723 (LVE), SH724 (LVE), HR781, RH721, RJ722 | L44: Y | N44: 1 | O44: 8 | P44: 1 | Q44: 5
A45: 1 | B45: Lower Valley Energy | E45: Jackson – Teton 115 kV (LVE) | F45: Jackson - Wilson 115 kV (LVE) | J45: JW741 (LVE) | K45: 7494, JW723 (LVE), JW724 (LVE), WJ722, WT721 | L45: Y | N45: 1 | O45: 8 | Q45: 5
A46: 1 | B46: Lower Valley Energy | E46: Jackson – East Jackson 115 kV (LVE) | F46: Jackson – East Jackson 115 kV (LVE) | G46: E. Jackson 115 kV (LVE) | J46: EJ742, JE742 (LVE) | K46: EJ728 (LVE), EJ729 (LVE), JE721 (LVE), JE722 (LVE) | L46: Y | N46: 1 | O46: 8 | P46: 1 | Q46: 5
A47: 1 | B47: Lower Valley Energy | E47: East Jackson – Teton 115 kV | F47: East Jackson – Crystal 115 kV (LVE) | J47: EC743 (LVE) | K47: 7580, EC721 (LVE), EC722 (LVE), CT723, CE722 | L47: Y | N47: 1 | O47: 8 | Q47: 5
A48: 1 | B48: Northern Wasco | C48: 17TP-11232 | D48: DP, LSE, TO | E48: Big Eddy- The Dalles No 1 115kV line | F48: Second Street –The Dalles Substation 115kV Line Segment (NWasco) | K48: 2K-14 The Dalles side Disconnect 115kV (NWasco), 2K-12 Second Street Transformer No. 1 Disconnect 115kV (NWasco) | N48: 1 | O48: 1 | P48: 0 | Q48: 1
A49: 1 | B49: Northern Wasco | C49: 17TP-11232 | D49: DP, LSE, TO | E49: Big Eddy- The Dalles No 1 115kV line | F49: Big Eddy – Seufert 115kV Line Segment (NWasco) | G49: Seufert (NWasco) | K49: 2K-22 Big Eddy Line Side Disconnect 115kV (NWasco), 2K-3 Seufert Transformer Disconnect 115kV (NWasco) | L49: Y | M49: Brightline | Q49: 1
A50: 1 | B50: Northern Wasco | C50: 17TP-11232 | D50: DP, LSE, TO | E50: Big Eddy- The Dalles No 1 115kV line | F50: Seufert - Columbia Heights 115kV Line Segment (NWasco) | G50: Col. Heights (NWasco) | J50: 2K-21 Columbia Heights Transformer Transrupter 115kV (NWasco) | K50: 2K-17 Seufert Line Side Disconnect 115kV (NWasco), 2K-505 Seufert Line Side Disconnect grounding Switch 115kV (NWasco), 2K-18 Seufert Line Side Tap Disconnect 115kV (NWasco), 2K-19 Columbia Heights Transformer Disconnect 115kV (NWasco), 2K-23 Columbia Heights Line Side Disconnect 115kV (NWasco) | L50: Y | M50: Brightline | Q50: 1
A51: 1 | B51: Northern Wasco | C51: 17TP-11232 | D51: DP, LSE, TO | E51: Big Eddy- The Dalles No 1 115kV line | F51: Columbia Heights – Three Mile Tap 115kV Line Tap (NWasco) | K51: 2K-25 Columbia Heights Line Side Disconnect 115kV (NWasco), 2K-27 Three Mile Tap Disconnect 115kV (NWasco), 2K-16 Three Mile Tap Side Disconnect 115kV (NWasco), 2K-500 Three Mile Tap Side Disconnect grounding Switch 115kV (NWasco) | L51: Y | M51: Brightline | P51: 0 | Q51: 1
A52: 1 | B52: Northern Wasco | C52: 17TP-11232 | D52: DP, LSE, TO | E52: Big Eddy- The Dalles No 1 115kV line | F52: Three Mile Tap –2nd Street 115kV Line Tap (NWasco) | G52: 2nd Street (N. Wasco) | K52: 2K-13 Three Mile Tap Structure Line Side Disconnect (Motor Operated) 115kV (NWasco), 2K-504 Three Mile Tap Side Disconnect grounding Switch 115kV (NWasco), 2K-11 Second Street Transformer No. 2 Disconnect 115kV (NWasco), 2K-26 Second Street Line Side Disconnect 115kV (NWasco) | L52: Y | M52: Brightline | P52: 1 | Q52: 1 | R52: No change to daily operations, except what would be required for BPA compliance
A53: 1 | B53: Okanogan County PUD No. 1 | C53: 17TP-11233 | D53: DP/TO | E53: Brewster (OKPUD) – Foster Creek (DCPUD) | F53: Brewster – Foster Creek (DCPUD) 115 kV line (OKPUD) | G53: Brewster 115 kV (OKPUD) | J53: T-52, 5272 | K53: T-52 MBD ABD LSD, 5271, 5273, B-1295 (OKPUD) 5271, 5273 | L53: Y | N53: 1 | O53: 5 | P53: 1 | Q53: 3 | R53: No change to daily operations, except what would be required for BPA compliance
A54: 1 | B54: Okanogan County PUD No. 1 | C54: 17TP-11233 | D54: DP/TO | E54: Brewster (OKPUD) – Okanogan (OKPUD) | F54: Brewster-Ophir 115 kV (OKPUD) | G54: Okanogan 115kV (OKPUD) | J54: B-1482, T-51 | K54: B-1482 MBD ABD LSD, T-51 MBD ABD LSD, B-453 (Ophir Tap), Ophir-Okanogan 115 kV line (OKPUD), B-455 (Ophir Tap) | N54: 1 | O54: 5 | P54: 1 | Q54: 3
A55: 1 | B55: Okanogan County PUD No. 1 | C55: 17TP-11233 | D55: DP/TO | E55: Okanogan (OKDPUD) – Twisp (OKPUD | F55: Okanogan – Twisp 115kV line (OKPUD) | G55: Twisp 115kV | J55: TW-TB-2, B-1486 | K55: TW-TS-4, TW-TS-5, TW-TS-6, B-1486 MBD ABD LSD, T-103 (Malott Tap), T-106 (Malott Tap), B-103 (Winthrop Tap – BPA), | N55: 1 | O55: 5 | P55: 1 | Q55: 3
A56: 1 | B56: Okanogan County PUD No. 1 | C56: 17TP-11233 | D56: DP/TO | E56: Brewster (OKPUD) – Twisp (OKPUD) | F56: Brewster – Pateros 115 kV line (OKPUD) | J56: TW-TB-3, T-53 | K56: TW-TS-7, TW-TS-8, TW-TS-9, T-111 (Pateros Tap), Pateros-Twisp 115 kV line (OKPUD), T-112 (Pateros Tap), T-113 (Pateros Tap), T-53 MBD ABD LSD | N56: 1 | O56: 5 | Q56: 3
A57: 1 | B57: Okanogan County PUD No. 1 | C57: 17TP-11233 | D57: DP/TO | E57: Okanogan (OKPUD) – East Omak (BPA) | F57: Okanogan – CIPV 115 kV line (OKPUD) | J57: B77, B-1488, B-1480 | K57: B77 MBD ABD LSD, B-1488 MBD ABD LSD, B-1480 MBD ABD LSD, T-090 (CIPV Tap), CIPV – Sandflat 115 kV line (OKPUD), T-091 (CIPV Tap), T-119 (Sandflat Tap), Sandflat - East Omak 115 kV line (OKPUD), T-121 (Sandflat Tap), T-120 (Sandflat Tap) | N57: 1 | O57: 5 | Q57: 3
A58: 1 | B58: Pend Oreille County PUD No. 1 | C58: 17TP-11234 | D58: GO/TO/TOP/GOP/DP | E58: Box Canyon tap to Colville – Boundary No 1 115kV line (POPD) | F58: Box Canyon tap 115kV line | G58: Box Canyon Substation 115kV (POPD) | J58: PB6452 (POPD), B1398 (POPD) | K58: PB6451 (POPD), PB6453 (POPD), PB6455 (POPD) | L58: Y | N58: 1 | O58: 4 | P58: 1 | Q58: 5
A59: 1 | B59: Pend Oreille County PUD No. 1 | D59: =D58 -> GO/TO/TOP/GOP/DP | E59: Box Canyon Substation (POPD) – Usk Switchyard (POPD) | F59: Box Canyon – Usk 115kV line | G59: Usk Switchyard 115kV (POPD) | J59: PU6552 (POPD), PB6152 (POPD), PB6252 (POPD), PB6352 (POPD) | K59: PU6551 (POPD), PU6553 (POPD), PU6555 (POPD), PB6151 (POPD), PB6153 (POPD), PB6251 (POPD), PB6253 (POPD), PB6351 (POPD), PB6353 (POPD) | L59: Y | N59: 1 | O59: 4 | P59: 1 | Q59: 5 | R59: Since they have been their own TOP, they may want to maintain some functional operation consistant with what they do today. This will be determined as we work through the TOP requirement checklist.
A60: 1 | B60: Pend Oreille County PUD No. 1 | E60: Usk Switchyard (POPD) – Usk Substation (BPA) | F60: Usk – Usk 115kV line | G60: Usk Substation 115kV (POPD), Usk Substation 230kV (POPUD) | K60: PU62252 (POPD), PU82052 (POPD), A960 (POPD), PU6550 (POPD) | N60: 1 | O60: 4 | P60: 2 | Q60: 5
A61: 1 | B61: Pend Oreille County PUD No. 1 | E61: Usk Switchyard (POPD) – Pine Street (POPD) | F61: Usk – Pine Street 115kV line | G61: Pine Street Substation 115kV (POPD) | J61: PP6652 (POPD), PP6752 (POPD), PP6852 (POPD), PP6952 (POPD), PU6652 (POPD) | K61: PP6651 (POPD), PP6653 (POPD), PP6751 (POPD), PP6753 (POPD), PP6851 (POPD), PP6853 (POPD), PP6951 (POPD), PP6953 (POPD), PU6651 (POPD), PU6653 (POPD) | N61: 1 | O61: 4 | P61: 1 | Q61: 5
A62: 1 | B62: Umatilla Electric Cooperative | C62: 17TX-16477 | E62: McNary - Hermiston Generating Company 230 kV | F62: McNary-Hermiston Generating Plant 230kV | L62: Y | M62: Qualifying generation - included under I2 | N62: 1 | O62: 1 | P62: 0 | Q62: 0 | R62: No change to daily operations, except what would be required for BPA compliance
A63: 1 | B63: Whatcom County PUD No. 1 | C63: 17TX-16479 | E63: Bellingham (BPA) - Refinery (Whatcom) 115kV | F63: Bellingham (BPA) - Refinery 115kV Line (Whatcom) | G63: Refinery 115kV (Whatcom) | J63: 5513 (Whatcom), 5514 (Whatcom), 5515 (Whatcom), 5516 (Whatcom), 5507 (Whatcom) | K63: 5504 (Whatcom), 5505 (Whatcom), 5517 (Whatcom), 5518 (Whatcom), 5519 (Whatcom), 5520 (Whatcom), 5521 (Whatcom), 5522 (Whatcom), 5523 (Whatcom), 5524 (Whatcom) | L63: Y | M63: Brightline, power transfer from Ferndale Cogen to Bellingham | N63: 1 | O63: 1 | P63: 1 | Q63: 1
A64: 0 | B64: Benton County PUD No. 1 | C64: N/A | D64: DP, LSE | L64: Y | M64: Qualifying wind generation, 97 MW, included under I4 The circuit switchers do not qualify as BES, but are required to operate the line. | N64: 0 | O64: 0 | P64: 0 | Q64: 0
A65: 0 | B65: Consumers Power, Inc. | C65: 10TX-14572 | D65: Not registered | E65: 1. Harrisburg - Greenberry (CPI) | L65: N | M65: Excluded by E1 | N65: 0 | O65: 0 | P65: 0 | Q65: 1
A66: 0 | B66: Consumers Power, Inc. | C66: 10TX-14572 | D66: Not registered | E66: 2. Airport Substation (Albany-Lebanon No. | G66: Airport 115kV | K66: Two future breakers, | L66: Y | M66: Will be part of the BES path when constructed | N66: 0 | O66: 0 | P66: 1 | Q66: 1
A67: 0 | B67: Eugene Water and Electric Board | C67: N/A | D67: DP, GO, GOP, LSE, TO, TOP, TP | E67: 1. Willakenzie - McKenzie - Coburg - River Loop - Spring Creek - Irvington - Prairie 115 kV | F67: Willakenzie - McKenzie 115kV, McKenzie - Coburg 115kV, Coburg - Spring Creek 115kV, Spring Creek - Irving tap 115kV | G67: McKenzie 115kV, Spring Creek 115kV, Coburg 115kV | J67: 2 | K67: 9 | L67: Y | N67: =IF(F67="",0,LEN(F67)-LEN(SUBSTITUTE(F67,",",""))+1) -> 4 | O67: =SUMIF(B:B,B67,N:N) -> 38 | P67: =IF(G67="",0,LEN(G67)-LEN(SUBSTITUTE(G67,",",""))+1) -> 3 | Q67: =SUMIF(B:B,B67,P:P) -> 32
A68: 0 | B68: Eugene Water and Electric Board | C68: N/A | D68: DP, GO, GOP, LSE, TO, TOP, TP | E68: 2. Prairie - Jessen - Danebo - Lane (BPA) 115 kV | F68: Prairie - Jessen 115kV, Jessen - Danebo 115kV, Danebo - Lane (BPA) 115kV | G68: Prairie 115kV, Jessen 115kV, Danebo 115kV | K68: 5 | L68: Y | N68: 3 | O68: 38 | P68: 3 | Q68: 32
A69: 0 | B69: Eugene Water and Electric Board | C69: N/A | D69: DP, GO, GOP, LSE, TO, TOP, TP | E69: 3. Lane (BPA) - Crow - Willow Creek - Hundai - Westmoreland 115 kV | F69: Westmoreland - Willow Creek 115kV, Willow Creek-Hundai #1, Willow Creek-Hundai #2, Willow Creek - Lane (BPA) | G69: Willow Creek 115kV, Hundai 115kV | K69: 5 | L69: Y | N69: 4 | O69: 38 | P69: 2 | Q69: 32
A70: 0 | B70: Eugene Water and Electric Board | C70: N/A | D70: DP, GO, GOP, LSE, TO, TOP, TP | E70: 4. Westmoreland - Seneca - Eugene (BPA) 115 kV | F70: Westmoreland - Seneca 115kV, Seneca - Bertelson 115kV | G70: Seneca 115, Bertelson 115 | K70: 5 | L70: Y | N70: 2 | O70: 38 | P70: 2 | Q70: 32
A71: 0 | B71: Eugene Water and Electric Board | C71: N/A | D71: DP, GO, GOP, LSE, TO, TOP, TP | E71: 5. Currin - Willakenzie - Cal Young - Santa Clara - Prairie 115 kV | F71: Currin - Willakenzie 115kV, Willakenzie - Cal Young 115kV, Cal Young - Santa Clara 115kV, Santa Clara - Prairie 115kV | G71: Willakenzie 115kV, Cal Young 115kV, Santa Clara 115kV | K71: 8 | L71: Y | N71: 4 | O71: 38 | P71: 3 | Q71: 32
A72: 0 | B72: Eugene Water and Electric Board | C72: N/A | D72: DP, GO, GOP, LSE, TO, TOP, TP | E72: 6. Currin - Bloomburg - Goshen - Alvey (BPA) 115 kV | F72: Currin - Alvey (BPA) 115kV | G72: Currin 115kV | K72: 1 | L72: Y | N72: 1 | O72: 38 | P72: 1 | Q72: 32
A73: 0 | B73: Eugene Water and Electric Board | C73: N/A | D73: DP, GO, GOP, LSE, TO, TOP, TP | E73: 7. Curren - Laurel - Hilyard - Monroe - Dillard - Jefferson - Westmoreland 115 kV | F73: Currin - Laurel 115kV, Laurel - Hilyard 115kV, Hillyard - Dillard 115kV, Hilyard - Monroe 115kV, Monroe - Jefferson 115kV, Jefferson - Westmoreland 115kV | G73: Laurel 115kV, Dillard 115kV, Hilyard 115kV, Monroe 115kV, Jefferson 115kV, Westmoreland 115kV | K73: 8 | L73: Y | N73: 6 | O73: 38 | P73: 6 | Q73: 32
A74: 0 | B74: Eugene Water and Electric Board | C74: N/A | D74: DP, GO, GOP, LSE, TO, TOP, TP | E74: 8. Currin - Willamette - Adams - Bethel - Eugene (BPA) 115 kV | F74: Currin - Willamette 115kV, Willamette - University 115kV, University - Adams 115kV, Adams - Bethel 115kV, Bethel - Eugene (BPA) 115kV | G74: Willamete 115kV, University 115kV, Adams 115kV, Bethel 115kV | K74: 11 | L74: Y | N74: 5 | O74: 38 | P74: 4 | Q74: 32
A75: 0 | B75: Eugene Water and Electric Board | C75: N/A | D75: DP, GO, GOP, LSE, TO, TOP, TP | E75: 9. Willamette Tap - Oakway - Delta - River Road - Eugene (BPA) 115 kV | F75: Willamette Tap - Oakway 115kV, Oakway - Delta 115kV, Delta - River Road 115kV, River Road - Eugene (BPA)115kV | G75: Oakway 115kV, Delta 115kV, RiverRoad 115kV | L75: Y | N75: 4 | O75: 38 | P75: 3 | Q75: 32
A76: 0 | B76: Eugene Water and Electric Board | C76: N/A | D76: DP, GO, GOP, LSE, TO, TOP, TP | E76: 10. Currin - Hayden Bridge Switching Station - Weyerhaeuser No. 3 - Weyerhaeuser No. 1 - Weyerhaeuser No. 2 - Thurston 115 kV | F76: Currin - Hayden Bridge Switching Station 115 kV, Hayden Bridge Switching Station - Weyerhaeuser No. 3 115 kV, Weyerhaeuser No. 3 - Weyerhaeuser No. 1 115 kV, Weyerhaeuser No. 1 -Weyerhaeuser No. 2 115 kV, Weyerhaeuser No. 2 - Thurston 115 kV | G76: Hayden Bridge Switching Station 115kV, Weyerhaeuser No. 3 115kV, Weyerhaeuser No. 1 115kV, Weyerhaeuser No. 2 115 kV, Thurston | K76: 6 | L76: Y | N76: 5 | O76: 38 | P76: 5 | Q76: 32
A77: 0 | B77: Oregon Trail Electric Coop. | C77: N/A | D77: TO | E77: 1. Hines – West John Day - Quartz 138 kV | F77: Hines-Quartz 138 kV | L77: Y | M77: Brightline, transfers power across system from LaGrande to Harney BPA leases this line | N77: 1 | O77: =SUMIF(B:B,B77,N:N)-1 -> 0 | P77: 0 | Q77: 0 | R77: OTEC is currently pursuing TOP Services from Idaho Power, not BPA. Further, the only item inventoried for TOP is leased to BPA so we wouldn't charge them for its operation.
A78: 0 | B78: Snohomish County PUD | C78: N/A | D78: DP, GO, GOP, LSE, TO, TOP, TP | E78: 1. Murray - East Arlington 115 kV | F78: Murray - East Arlington 115 kV | K78: ? | L78: Y | N78: 1 | O78: =SUMIF(B:B,B78,N:N) -> 44 | P78: 0 | Q78: 16
A79: 0 | B79: Snohomish County PUD | C79: N/A | D79: DP, GO, GOP, LSE, TO, TOP, TP | E79: 2. East Arlington- Stimson Crossing 115 kV | F79: East Arlington- Stimson Crossing | K79: ? | L79: Y | N79: 1 | O79: 44 | P79: 0 | Q79: 16
A80: 0 | B80: Snohomish County PUD | C80: N/A | D80: DP, GO, GOP, LSE, TO, TOP, TP | E80: 3. Stimson Crossing - N. Stanwood-Lake Goodwin- Camano Sub 115 kV | F80: Stanwood-Lake Goodwin, Lake Goodwin - Camano Sub | G80: Lake Goodwin | K80: ? | L80: Y | N80: 2 | O80: 44 | P80: 1 | Q80: 16
A81: 0 | B81: Snohomish County PUD | C81: N/A | D81: DP, GO, GOP, LSE, TO, TOP, TP | E81: 4. Murray-Smokey Pt - Stimson Crossing 115 kV | F81: Murray-Smokey Pt , Smokey Pt - Stimson Crossing | G81: Smokey Pt | K81: ? | L81: Y | N81: 2 | O81: 44 | P81: 1 | Q81: 16
A82: 0 | B82: Snohomish County PUD | C82: N/A | D82: DP, GO, GOP, LSE, TO, TOP, TP | E82: 5. Stimson Crossing -N. Marysville-Delta 115 kV | F82: Marysville-Delta | K82: ? | L82: Y | N82: 1 | O82: 44 | P82: 0 | Q82: 16
A83: 0 | B83: Snohomish County PUD | C83: N/A | D83: DP, GO, GOP, LSE, TO, TOP, TP | E83: 6. Murray - Granite Tap - Lake Stevens-Snohomish 115 kV | F83: Murray - Granite Tap - Lake Stevens, Lake Stevens -Snohomish | G83: Granite Tap | K83: ? | L83: Y | N83: 2 | O83: 44 | P83: 1 | Q83: 16
A84: 0 | B84: Snohomish County PUD | C84: N/A | D84: DP, GO, GOP, LSE, TO, TOP, TP | E84: 7. Delta-Tulalip- Stimsons Crossing 115 kV | F84: Delta-Tulalip- Stimsons Crossing | G84: Tulalip | K84: ? | L84: Y | N84: 1 | O84: 44 | P84: 1 | Q84: 16
A85: 0 | B85: Snohomish County PUD | C85: N/A | D85: DP, GO, GOP, LSE, TO, TOP, TP | E85: 9. BPA Snohomish-Beverly Park #3 (S-BP#3) 115 kV | F85: BPA Snohomish-Beverly Park #3 (S-BP#3) | K85: ? | L85: Y | N85: 1 | O85: 44 | P85: 0 | Q85: 16
A86: 0 | B86: Snohomish County PUD | C86: N/A | D86: DP, GO, GOP, LSE, TO, TOP, TP | E86: 10. Beverly Park - Casino - Paine Field 115 kV | F86: Beverly Park - Casino, Casino - Paine Field | G86: Casino | K86: ? | L86: Y | N86: 2 | O86: 44 | P86: 1 | Q86: 16
A87: 0 | B87: Snohomish County PUD | C87: N/A | D87: DP, GO, GOP, LSE, TO, TOP, TP | E87: 11. Paine Field - Boeing Sub 115 kV | F87: Paine Field - Boeing Sub | K87: ? | L87: Y | N87: 1 | O87: 44 | P87: 0 | Q87: 16
A88: 0 | B88: Snohomish County PUD | C88: N/A | D88: DP, GO, GOP, LSE, TO, TOP, TP | E88: 12. Paine Field - Lake Serene-Halls Lake 115 kV | F88: Paine Field - Lake Serene, Lake Serene-Halls Lake | G88: Lake Serene | K88: ? | L88: Y | N88: 2 | O88: 44 | P88: 1 | Q88: 16
A89: 0 | B89: Snohomish County PUD | C89: N/A | D89: DP, GO, GOP, LSE, TO, TOP, TP | E89: 13. BPA Snohomish-Fobes-Delta 115 kV | F89: BPA Snohomish-Fobes, Fobes-Delta | G89: Fobes | K89: ? | L89: Y | N89: 2 | O89: 44 | P89: 1 | Q89: 16
A90: 0 | B90: Snohomish County PUD | C90: N/A | D90: DP, GO, GOP, LSE, TO, TOP, TP | E90: 14. Delta - Navy Sub 115 kV | F90: Delta - Navy Sub | K90: ? | L90: Y | N90: 1 | O90: 44 | P90: 0 | Q90: 16
A91: 0 | B91: Snohomish County PUD | C91: N/A | D91: DP, GO, GOP, LSE, TO, TOP, TP | E91: 15. Scott - Everett - Navy 115 kV | F91: Scott - Everett, Everett - Navy | G91: Everett | K91: ? | L91: Y | N91: 2 | O91: 44 | P91: 1 | Q91: 16
A92: 0 | B92: Snohomish County PUD | C92: N/A | D92: DP, GO, GOP, LSE, TO, TOP, TP | E92: 16. BPA Snohomish-Everett 115 kV | F92: BPA Snohomish-Everett | K92: ? | L92: Y | N92: 1 | O92: 44 | P92: 0 | Q92: 16
A93: 0 | B93: Snohomish County PUD | C93: N/A | D93: DP, GO, GOP, LSE, TO, TOP, TP | E93: 17. Scott - Waterfront - Snohomish 115 kV | F93: Scott - Waterfront, Waterfront - Snohomish | G93: Waterfront | K93: ? | L93: Y | N93: 2 | O93: 44 | P93: 1 | Q93: 16
A94: 0 | B94: Snohomish County PUD | C94: N/A | D94: DP, GO, GOP, LSE, TO, TOP, TP | E94: 18. BPA Snohomish-Olivia - Paine Field 115 kV | F94: BPA Snohomish-Olivia, Olivia - Paine Field | G94: Olivia | K94: ? | L94: Y | N94: 2 | O94: 44 | P94: 1 | Q94: 16
A95: 0 | B95: Snohomish County PUD | C95: N/A | D95: DP, GO, GOP, LSE, TO, TOP, TP | E95: 19. Beverly Park - Swamp Creek - Snoking 115 kV | F95: Beverly Park - Swamp Creek, Swamp Creek - Snoking | G95: Swamp Creek | K95: ? | L95: Y | N95: 2 | O95: 44 | P95: 1 | Q95: 16
A96: 0 | B96: Snohomish County PUD | C96: N/A | D96: DP, GO, GOP, LSE, TO, TOP, TP | E96: 20. BPA Snohomish - Boeing Sub 115 kV | F96: BPA Snohomish - Boeing Sub | K96: ? | L96: Y | N96: 1 | O96: 44 | P96: 0 | Q96: 16
A97: 0 | B97: Snohomish County PUD | C97: N/A | D97: DP, GO, GOP, LSE, TO, TOP, TP | E97: 21. Boeing Sub - 20th Avenue Sub 115 kV | F97: Boeing Sub - 20th Avenue Sub | K97: ? | L97: Y | N97: 1 | O97: 44 | P97: 0 | Q97: 16
A98: 0 | B98: Snohomish County PUD | C98: N/A | D98: DP, GO, GOP, LSE, TO, TOP, TP | E98: 22. BPA Snohomish-JHP-Snohomish 115 kV | F98: BPA Snohomish-JHP, JHP-Snohomish | G98: JHP | K98: ? | L98: Y | N98: 2 | O98: 44 | P98: 1 | Q98: 16
A99: 0 | B99: Snohomish County PUD | C99: N/A | D99: DP, GO, GOP, LSE, TO, TOP, TP | E99: 23. Halls Lake Sub - Ballinger - Westgate 115 kV | F99: Halls Lake Sub - Ballinger, Ballinger - Westgate | G99: Ballinger | K99: ? | L99: Y | N99: =IF(F99="",0,LEN(F99)-LEN(SUBSTITUTE(F99,",",""))+1) -> 2 | O99: 44 | P99: =IF(G99="",0,LEN(G99)-LEN(SUBSTITUTE(G99,",",""))+1) -> 1 | Q99: =SUMIF(B:B,B99,P:P) -> 16
A100: 0 | B100: Snohomish County PUD | C100: N/A | D100: DP, GO, GOP, LSE, TO, TOP, TP | E100: 24. Halls Lake Sub - 5 Corners - Lynnwood 115 kV | F100: Halls Lake Sub - 5 Corners, 5 Corners - Lynnwood | G100: 5 Corners | K100: ? | L100: Y | N100: 2 | O100: 44 | P100: 1 | Q100: 16
A101: 0 | B101: Snohomish County PUD | C101: N/A | D101: DP, GO, GOP, LSE, TO, TOP, TP | E101: 25. Snoking - Thrashers Corner- Halls Lake Sub 115 kV | F101: Snoking - Thrashers Corner, Thrashers Corner - Halls Lake Sub | G101: Thrashers Corner | K101: ? | L101: Y | N101: 2 | O101: 44 | P101: 1 | Q101: 16
A102: 0 | B102: Snohomish County PUD | C102: N/A | D102: DP, GO, GOP, LSE, TO, TOP, TP | E102: 26. Snoking - Canyon Park Sub - Halls Lake Sub 115 kV | F102: Snoking - Canyon Park Sub, Canyon Park Sub - Halls Lake Sub | G102: Canyon Park Sub | K102: ? | L102: Y | N102: 2 | O102: 44 | P102: 1 | Q102: 16
A103: 0 | B103: Snohomish County PUD | C103: N/A | D103: DP, GO, GOP, LSE, TO, TOP, TP | E103: 27. Halls Lake - Brightwater 115 kV | F103: Halls Lake - Brightwater 115kV | K103: ? | L103: Y | N103: 1 | O103: 44 | P103: 0 | Q103: 16
A104: 0 | B104: Snohomish County PUD | C104: N/A | D104: DP, GO, GOP, LSE, TO, TOP, TP | E104: 28. Snohomish (SNOH S1) - Jackson 115 kV | F104: Snohomish-Jackson 115kV | K104: ? | L104: Y | N104: 1 | O104: 44 | P104: 0 | Q104: 16
A105: 0 | B105: Snohomish County PUD | C105: N/A | D105: DP, GO, GOP, LSE, TO, TOP, TP | E105: 29. Snoking (SNOk S1) - North Creek 115 kV | F105: Snoking (SNOk S1) - North Creek 115kV | K105: ? | L105: Y | N105: 1 | O105: 44 | P105: 0 | Q105: 16
A106: 0 | B106: Snohomish County PUD | C106: N/A | D106: DP, GO, GOP, LSE, TO, TOP, TP | E106: 30. Snoking (SNOk S3) - Brightwater 115 kV | F106: Snoking (SNOk S3) - Brightwater 115kV | K106: ? | L106: Y | N106: 1 | O106: 44 | P106: 0 | Q106: 16 | R106: No change to daily operations, except what would be required for BPA compliance
A107: 0 | B107: Springfield Utility Board | C107: N/A | D107: not registered | E107: 1. Springfield Interconnected Network 115 kV | F107: Alvey - Springfield No. 1 115kV | G107: Springfield 115kV | H107: Spingfield 3MVAR Cap* | K107: 2S612, CS-2S616* | L107: Y | M107: *We cannot consider Springfield's system for a Local Network Exemption because there is not two years of historic data with the new configuration. They may be able to apeal to get all or part of their system for that exemption, but we can't make that determination with the current data we have. All lines qualify for BES due to brightline. | N107: 1 | O107: 11 | P107: 1 | Q107: 7
A108: 0 | B108: Springfield Utility Board | C108: N/A | D108: not registered | E108: 1. Springfield Interconnected Network 115 kV | F108: Springfield - Tenth Street 115kV | G108: Tenth Street 115kV | K108: 2S601, 2S618 | L108: Y | N108: 1 | O108: 11 | P108: 1 | Q108: 7
A109: 0 | B109: Springfield Utility Board | C109: N/A | D109: not registered | E109: 1. Springfield Interconnected Network 115 kV | F109: Alvey - Tenth Street 115kV | K109: 2S197 | L109: Y | N109: 1 | O109: 11 | P109: 0 | Q109: 7
A110: 0 | B110: Springfield Utility Board | C110: N/A | D110: not registered | E110: 1. Springfield Interconnected Network 115 kV | F110: Tenth Street - Laura 115kV | G110: Laura Street 115kV | K110: 2S198, 2S691 | L110: Y | N110: 1 | O110: 11 | P110: 1 | Q110: 7
A111: 0 | B111: Springfield Utility Board | C111: N/A | D111: not registered | E111: 1. Springfield Interconnected Network 115 kV | F111: Laura - Gateway Tap 115kV | K111: 2S159 | L111: Y | N111: 1 | O111: 11 | P111: 0 | Q111: 7
A112: 0 | B112: Springfield Utility Board | C112: N/A | D112: not registered | E112: 1. Springfield Interconnected Network 115 kV | F112: McKenzie - Gateway Tap 115kV Tap | L112: Y | N112: 1 | O112: 11 | P112: 0 | Q112: 7
A113: 0 | B113: Springfield Utility Board | C113: N/A | D113: not registered | E113: 1. Springfield Interconnected Network 115 kV | F113: Gateway - Gateway Tap 115kV | G113: Gateway 115kV | K113: 2S276 | L113: Y | N113: 1 | O113: 11 | P113: 1 | Q113: 7
A114: 0 | B114: Springfield Utility Board | C114: N/A | D114: not registered | E114: 1. Springfield Interconnected Network 115 kV | F114: Gateway - Olympic 115kV | G114: Olympic 115kV | K114: 2S282, 2S621 | L114: Y | N114: 1 | O114: 11 | P114: 1 | Q114: 7
A115: 0 | B115: Springfield Utility Board | C115: N/A | D115: not registered | E115: 1. Springfield Interconnected Network 115 kV | F115: Springfield - Olympic 115kV | K115: 2S625, 2S607 | L115: Y | N115: 1 | O115: 11 | P115: 0 | Q115: 7
A116: 0 | B116: Springfield Utility Board | C116: N/A | D116: not registered | E116: 1. Springfield Interconnected Network 115 kV | F116: Jasper - Olympic 115kV | G116: Jasper 115kV | K116: 2S632, 2S104 | L116: Y | N116: 1 | O116: 11 | P116: 1 | Q116: 7
A117: 0 | B117: Springfield Utility Board | C117: N/A | D117: not registered | E117: 1. Springfield Interconnected Network 115 kV | F117: Mt. Vernon - Jasper 115kV | G117: Mt. Vernon 115kV | K117: 2S146, 2S128 | L117: Y | N117: 1 | O117: 11 | P117: 1 | Q117: 7 | R117: No change to daily operations, except what would be required for BPA compliance
A118: 0 | B118: TransAlta Centralia Generation, LLC | C118: 09TX-14131 | D118: GO, GOP, TO | E118: 1. Paul Substation-Centralia PH 500 kV | F118: Paul Substation-Centralia PH No. 1 500kV | K118: 4542, 4544, CBS13 | L118: Y | M118: Qualifying generation - included under I2 | N118: 1 | O118: 2 | P118: 0 | Q118: 0 | R118: No change to daily operations, except what would be required for BPA compliance
A119: 0 | B119: TransAlta Centralia Generation, LLC | C119: 09TX-14131 | D119: GO, GOP, TO | E119: 1. Paul Substation-Centralia PH 500 kV | F119: Paul Substation-Centralia PH No. 2 500kV | K119: 4536 | L119: Y | M119: Qualifying generation - included under I2 | N119: 1 | O119: 2 | P119: 0 | Q119: 0
A120: 0 | B120: US DOE Richland | C120: N/A | D120: DP, LSE, TO | E120: 1. Midway – HEW (A7) – Ashe # 1 | F120: Midway – HEW (A7) – Ashe # 1 230kV | G120: A9 230kV, A7 230kV | L120: Y | M120: Brightline, power transfer across system | N120: 1 | O120: 2 | P120: 2 | Q120: 4 | R120: Will no longer be a TO once Midway-Ashe is complete
A121: 0 | B121: US DOE Richland | C121: N/A | D121: DP, LSE, TO | E121: 2. Midway – HEW (A6 & A8) – Ashe # 1 | F121: Midway – HEW (A6 & A8) – Ashe # 1 230kV | G121: A8 230kV, A6 230kV | K121: A-386, A-384, A-362, A-366, A-364 | L121: Y | M121: Brightline, power transfer across system | N121: 1 | O121: 2 | P121: 2 | Q121: 4
A122: 0 | B122: US Naval Base Kitsap | C122: N/A | D122: DP, LSE, TO | E122: 1. Sub X – Sub H 115 kV | G122: Station H | L122: Y | M122: Originally exclused at local network, revisited on 12/18/15 | N122: 0 | O122: 1 | P122: 1 | Q122: 3 | R122: No change to daily operations, except what would be required for BPA compliance
A123: 0 | B123: US Naval Base Kitsap | C123: N/A | D123: DP, LSE, TO | E123: 2. Sub H - Sub FG 115 kV | F123: Station H-Station FG 115kV | G123: Station GF | L123: Y | M123: Originally exclused at local network, revisited on 12/18/16 | N123: 1 | O123: 1 | P123: 1 | Q123: 3
A124: 0 | B124: US Naval Base Kitsap | E124: 3. Kitsap - Bangor - Foss Corner 115 kV | G124: Bangor (Substation 1) | L124: Y | M124: Instances of bi-direction power flow on Kitsap-Bagor | N124: 0 | O124: 1 | P124: 1 | Q124: 3
B129: Not BES
B130: TransAlta Centralia Generation, LLC | C130: 09TX-14131 | D130: GO, GOP, TO | E130: 3. Line 1B from a tap point to Line 1 to Big Hanaford Substation | L130: N | M130: Excluded by E1 - Radial
B131: Klickitat County PUD No. 1 | C131: N/A | E131: 2. Rock Creek (BPA) - White Creek (KPUD) - Harvest Wind (KPUD) | F131: White Creek (KPUD) - Harvest Wind (KPUD) 230kV | L131: N | M131: Radial, E1, not enough qualifying generation
B132: Public Utility District No. 1 of Cowlitz County | C132: 09TX-14537 | D132: DP, GO,GOP, LSE, TO | E132: 1. Longview - Hycom | L132: N | M132: Excluded by E1 - Radial
B133: Public Utility District No. 1 of Cowlitz County | C133: 09TX-14537 | D133: DP, GO,GOP, LSE, TO | E133: 2. Cowlitz - Longview Fibre | L133: N | M133: Excluded by E2, Gen on customer side for customer load
B134: Public Utility District No. 1 of Cowlitz County | C134: 09TX-14537 | D134: DP, GO,GOP, LSE, TO | E134: 3. Longview - Chemical | L134: N | M134: Excluded by E1 - Radial

Sheet Print View - Asset List (hidden)
A1: ='Asset List'!B1 -> Customer | B1: ='Asset List'!E1 -> Path | C1: ='Asset List'!F2 -> Line Segments | D1: ='Asset List'!G2 -> Buses | E1: ='Asset List'!I2 -> Disconnect Switches | F1: ='Asset List'!K2 -> Breakers/CS | G1: ='Asset List'!R2 -> Customer Perspective
A2: ='Asset List'!B3 -> Clark Public Utilities | B2: =IF('Asset List'!E3="","",'Asset List'!E3) -> 1. Ross - Hazel Dell 115 kV | C2: =IF('Asset List'!F3="","",'Asset List'!F3) -> Ross-Hazel Dell 115kV | D2: =IF('Asset List'!G3="","",'Asset List'!G3) -> Hazel Dell 115 kV | E2: =IF('Asset List'!I3="","",'Asset List'!I3) -> ? | F2: =IF('Asset List'!K3="","",'Asset List'!K3) ->  | G2: =IF('Asset List'!R3="","",'Asset List'!R3) -> Since they have been their own TOP, they may want to maintain some functional operation consistant with what they do today. This will be determined as we work through the TOP requirement checklist.
A3: ='Asset List'!B4 -> Clark Public Utilities | B3: =IF('Asset List'!E4="","",'Asset List'!E4) -> 2. Alcoa - River Road - Fruit Valley Tap 115 kV | C3: =IF('Asset List'!F4="","",'Asset List'!F4) -> Alcoa – River Road 115 kV, River Road - Fruit Valley Tap 115 kV | D3: =IF('Asset List'!G4="","",'Asset List'!G4) -> River Road 115 kV | E3: =IF('Asset List'!I4="","",'Asset List'!I4) -> ? | F3: =IF('Asset List'!K4="","",'Asset List'!K4) ->  | G3: =IF('Asset List'!R4="","",'Asset List'!R4) -> 
A4: ='Asset List'!B5 -> Clark Public Utilities | B4: =IF('Asset List'!E5="","",'Asset List'!E5) -> 3. Sifton 2 – Alcoa 115 kV | C4: =IF('Asset List'!F5="","",'Asset List'!F5) -> Sifton 2 – 119th St. 115kV, 119th St. – Cherry Grove 115kV, Cherry Grove - Pioneer 115kV, Pioneer- Alcoa 115 kV | D4: =IF('Asset List'!G5="","",'Asset List'!G5) -> 119th St. 115 kV, Cherry Grove 115 kV, Pioneer 115 kV | E4: =IF('Asset List'!I5="","",'Asset List'!I5) ->  | F4: =IF('Asset List'!K5="","",'Asset List'!K5) ->  | G4: =IF('Asset List'!R5="","",'Asset List'!R5) -> 
A5: ='Asset List'!B6 -> Clark Public Utilities | B5: =IF('Asset List'!E6="","",'Asset List'!E6) -> 4. Sifton 1 - Silicon - Sifton 3 115 kV | C5: =IF('Asset List'!F6="","",'Asset List'!F6) -> Sifton 1 – Silicon 115kV, Silicon – Sifton 3 115kV | D5: =IF('Asset List'!G6="","",'Asset List'!G6) -> Silicon 115 kV | E5: =IF('Asset List'!I6="","",'Asset List'!I6) -> ? | F5: =IF('Asset List'!K6="","",'Asset List'!K6) ->  | G5: =IF('Asset List'!R6="","",'Asset List'!R6) -> 
A6: ='Asset List'!B7 -> Clark Public Utilities | B6: =IF('Asset List'!E7="","",'Asset List'!E7) -> 5. Sifton 5 – Lacamas - Wafertech - Runyan - Ast -Sifton 4 115 kV | C6: =IF('Asset List'!F7="","",'Asset List'!F7) -> Sifton 5 – Lacamas 115 kV, Lacamas - Wafertech 115 kV, Wafertech - Runyan 115 kV, Runyan - Joe Ast 115 kV, Joe Ast - Sifton 4 115 kV | D6: =IF('Asset List'!G7="","",'Asset List'!G7) -> Lacamas 115 kV, Wafertech 115 kV, Runyan 115 kV, Joe Ast 115 kV | E6: =IF('Asset List'!I7="","",'Asset List'!I7) -> ? | F6: =IF('Asset List'!K7="","",'Asset List'!K7) ->  | G6: =IF('Asset List'!R7="","",'Asset List'!R7) -> 
A7: ='Asset List'!B8 -> Clark Public Utilities | B7: =IF('Asset List'!E8="","",'Asset List'!E8) -> 6. Runyan - Troutdale 115 kV | C7: =IF('Asset List'!F8="","",'Asset List'!F8) -> Runyan - Troutdale 115 kV | D7: =IF('Asset List'!G8="","",'Asset List'!G8) ->  | E7: =IF('Asset List'!I8="","",'Asset List'!I8) -> ? | F7: =IF('Asset List'!K8="","",'Asset List'!K8) ->  | G7: =IF('Asset List'!R8="","",'Asset List'!R8) -> 
A8: ='Asset List'!B9 -> Clark Public Utilities | B8: =IF('Asset List'!E9="","",'Asset List'!E9) -> 7. North Camas 115 kV Substation | C8: =IF('Asset List'!F9="","",'Asset List'!F9) ->  | D8: =IF('Asset List'!G9="","",'Asset List'!G9) -> North Camas 115 kV | E8: =IF('Asset List'!I9="","",'Asset List'!I9) -> ? | F8: =IF('Asset List'!K9="","",'Asset List'!K9) ->  | G8: =IF('Asset List'!R9="","",'Asset List'!R9) -> 
A9: ='Asset List'!B10 -> Cowlitz County PUD No. 1 | B9: =IF('Asset List'!E10="","",'Asset List'!E10) -> Lexington (BPA) - Shawnee (CPUD) | C9: =IF('Asset List'!F10="","",'Asset List'!F10) -> Lexington - Shawnee 115kV | D9: =IF('Asset List'!G10="","",'Asset List'!G10) -> Shawnee 115kV (CPUD) | E9: =IF('Asset List'!I10="","",'Asset List'!I10) ->  | F9: =IF('Asset List'!K10="","",'Asset List'!K10) -> 115B1-LD (CPUD) | G9: =IF('Asset List'!R10="","",'Asset List'!R10) -> No change to daily operations, except what would be required for BPA compliance
A10: ='Asset List'!B11 -> Cowlitz County PUD No. 1 | B10: =IF('Asset List'!E11="","",'Asset List'!E11) -> Shawnee (CPUD) - East Kelso (CPUD) | C10: =IF('Asset List'!F11="","",'Asset List'!F11) -> Shawnee - East Kelso 115kV | D10: =IF('Asset List'!G11="","",'Asset List'!G11) -> Shawnee 115kV (CPUD), East Kelso 115 kV (CPUD) | E10: =IF('Asset List'!I11="","",'Asset List'!I11) ->  | F10: =IF('Asset List'!K11="","",'Asset List'!K11) -> 115B2-LD (CPUD), 115B2-BD (CPUD), 115k1-LD (CPUD), 115k1-BD (CPUD) | G10: =IF('Asset List'!R11="","",'Asset List'!R11) -> 
A11: ='Asset List'!B12 -> Cowlitz County PUD No. 1 | B11: =IF('Asset List'!E12="","",'Asset List'!E12) -> East Kelso (CPUD) - Soucth Kelso (CPUD) | C11: =IF('Asset List'!F12="","",'Asset List'!F12) -> East Kelso - South Kelso 115kV | D11: =IF('Asset List'!G12="","",'Asset List'!G12) -> East Kelso 115kV (CPUD), South kelso 115kV (CPUD) | E11: =IF('Asset List'!I12="","",'Asset List'!I12) ->  | F11: =IF('Asset List'!K12="","",'Asset List'!K12) -> 115K2-LD (CPUD), 115K2-BD (CPUD), 115SK3-BD (CPUD) | G11: =IF('Asset List'!R12="","",'Asset List'!R12) -> 
A12: ='Asset List'!B13 -> Cowlitz County PUD No. 1 | B12: =IF('Asset List'!E13="","",'Asset List'!E13) -> South Kelso (CPUD) - Carrolls (CPUD) | C12: =IF('Asset List'!F13="","",'Asset List'!F13) -> South Kelso - Cardwell 115kV | D12: =IF('Asset List'!G13="","",'Asset List'!G13) -> South Kelso 115kV (CPUD), Carrolls 115kV (CPUD) | E12: =IF('Asset List'!I13="","",'Asset List'!I13) ->  | F12: =IF('Asset List'!K13="","",'Asset List'!K13) -> 115SK1-BED-BD (CPUD), 115S1-LD (CPUD) | G12: =IF('Asset List'!R13="","",'Asset List'!R13) -> 
A13: ='Asset List'!B14 -> Cowlitz County PUD No. 1 | B13: =IF('Asset List'!E14="","",'Asset List'!E14) -> Carrolls (CPUD) - Cardwell (BPA) | C13: =IF('Asset List'!F14="","",'Asset List'!F14) -> South Kelso - Cardwell 11 5kV | D13: =IF('Asset List'!G14="","",'Asset List'!G14) -> Carrolls 115kV (CPUD) | E13: =IF('Asset List'!I14="","",'Asset List'!I14) ->  | F13: =IF('Asset List'!K14="","",'Asset List'!K14) -> 115S2-LD (CPUD) | G13: =IF('Asset List'!R14="","",'Asset List'!R14) -> 
A14: ='Asset List'!B15 -> Cowlitz County PUD No. 1 | B14: =IF('Asset List'!E15="","",'Asset List'!E15) -> Longview (BPA) - Washington Way (CPUD) | C14: =IF('Asset List'!F15="","",'Asset List'!F15) ->  | D14: =IF('Asset List'!G15="","",'Asset List'!G15) -> Washington Way - 7th Ave 115kV (CPUD) | E14: =IF('Asset List'!I15="","",'Asset List'!I15) ->  | F14: =IF('Asset List'!K15="","",'Asset List'!K15) -> 115W1-LD (CPUD), 115W1-BD (CPUD) | G14: =IF('Asset List'!R15="","",'Asset List'!R15) -> 
A15: ='Asset List'!B16 -> Cowlitz County PUD No. 1 | B15: =IF('Asset List'!E16="","",'Asset List'!E16) -> Washington Way (CPUD) - 7th Ave (CPUD) | C15: =IF('Asset List'!F16="","",'Asset List'!F16) -> Washington Way - 7th Ave 115kV | D15: =IF('Asset List'!G16="","",'Asset List'!G16) -> Washington Way - 7th Ave 115kV (CPUD) | E15: =IF('Asset List'!I16="","",'Asset List'!I16) ->  | F15: =IF('Asset List'!K16="","",'Asset List'!K16) -> 115W2-LD (CPUD), 115W2-BD (CPUD), 115H2-LD (CPUD), 115H2-BD (CPUD | G15: =IF('Asset List'!R16="","",'Asset List'!R16) -> 
A16: ='Asset List'!B17 -> Cowlitz County PUD No. 1 | B16: =IF('Asset List'!E17="","",'Asset List'!E17) -> 7th Ave (CPUD) - Cowlitz (BPA) | C16: =IF('Asset List'!F17="","",'Asset List'!F17) -> 7th Ave - Cowlitz 115kV | D16: =IF('Asset List'!G17="","",'Asset List'!G17) -> 7th Ave - Cowlitz 115kV (CPUD) | E16: =IF('Asset List'!I17="","",'Asset List'!I17) ->  | F16: =IF('Asset List'!K17="","",'Asset List'!K17) -> 115H1-LD (CPUD), 115H1-BD (CPUD, 115C6 N.O. (CPUD) at Columbia Way | G16: =IF('Asset List'!R17="","",'Asset List'!R17) -> 
A17: ='Asset List'!B18 -> Cowlitz County PUD No. 1 | B17: =IF('Asset List'!E18="","",'Asset List'!E18) -> 7th Ave (CPUD) - East Kelso (CPUD) | C17: =IF('Asset List'!F18="","",'Asset List'!F18) -> 7th Ave - East Kelso 115kV | D17: =IF('Asset List'!G18="","",'Asset List'!G18) -> 7th Ave 115kV (CPUD), East Kelso 115kV (CPUD) | E17: =IF('Asset List'!I18="","",'Asset List'!I18) ->  | F17: =IF('Asset List'!K18="","",'Asset List'!K18) -> 115H3-LD (CPUD), 115H3-BD (CPUD), 115K5-LD (CPUD), 115K5-BD (CPUD) | G17: =IF('Asset List'!R18="","",'Asset List'!R18) -> 
A18: ='Asset List'!B19 -> Cowlitz County PUD No. 1 | B18: =IF('Asset List'!E19="","",'Asset List'!E19) -> Longview (BPA) - Mint Farm (CPUD) | C18: =IF('Asset List'!F19="","",'Asset List'!F19) -> Longview - Mint Farm 115kV | D18: =IF('Asset List'!G19="","",'Asset List'!G19) -> Mint Farm 115kV (CPUD | E18: =IF('Asset List'!I19="","",'Asset List'!I19) ->  | F18: =IF('Asset List'!K19="","",'Asset List'!K19) -> 115MF1-LD (CPUD), 115MF1-BD (CPUD) | G18: =IF('Asset List'!R19="","",'Asset List'!R19) -> 
A19: ='Asset List'!B20 -> Cowlitz County PUD No. 1 | B19: =IF('Asset List'!E20="","",'Asset List'!E20) -> Mint Farm (CPUD) - Olive Way (CPUD) | C19: =IF('Asset List'!F20="","",'Asset List'!F20) -> Mint Farm - Olive Way 115kV | D19: =IF('Asset List'!G20="","",'Asset List'!G20) -> Mint Farm 115kV (CPUD, Olive Way 115kV (CPUD) | E19: =IF('Asset List'!I20="","",'Asset List'!I20) ->  | F19: =IF('Asset List'!K20="","",'Asset List'!K20) -> 115MF3-LD (CPUD), 115MF3-BD (CPUD), 115L2-LD (CPUD), 115L2-BD (CPUD) | G19: =IF('Asset List'!R20="","",'Asset List'!R20) -> 
A20: ='Asset List'!B21 -> Cowlitz County PUD No. 1 | B20: =IF('Asset List'!E21="","",'Asset List'!E21) -> Olive Way (CPUD) - 20th & Ocean Beach (CPUD) | C20: =IF('Asset List'!F21="","",'Asset List'!F21) -> Olive Way - 20th & Ocean Beach 115kV | D20: =IF('Asset List'!G21="","",'Asset List'!G21) -> Olive Way 115kV (CPUD), Ocean Beach 115kV (CPUD) | E20: =IF('Asset List'!I21="","",'Asset List'!I21) ->  | F20: =IF('Asset List'!K21="","",'Asset List'!K21) -> 115E2-LD (CPUD), 115E2-BD (CPUD), 115J1-LD (CPUD), 115J2-BD (CPUD) | G20: =IF('Asset List'!R21="","",'Asset List'!R21) -> 
A21: ='Asset List'!B22 -> Cowlitz County PUD No. 1 | B21: =IF('Asset List'!E22="","",'Asset List'!E22) -> 20th & Ocean Beach (CPUD) - West Kelso (CPUD) | C21: =IF('Asset List'!F22="","",'Asset List'!F22) -> 20th & Ocean Beach - West Kelso 115kV | D21: =IF('Asset List'!G22="","",'Asset List'!G22) -> 20th & Ocean Beach 115kV (CPUD), West Kelso 115kV (CPUD) | E21: =IF('Asset List'!I22="","",'Asset List'!I22) ->  | F21: =IF('Asset List'!K22="","",'Asset List'!K22) -> 115E2-LD (CPUD), 115E2-BD (CPUD), 115J1-LD (CPUD), 115J1-BD (CPUD) | G21: =IF('Asset List'!R22="","",'Asset List'!R22) -> 
A22: ='Asset List'!B23 -> Cowlitz County PUD No. 1 | B22: =IF('Asset List'!E23="","",'Asset List'!E23) -> West Kelso (CPUD) - East Kelso (CPUD) | C22: =IF('Asset List'!F23="","",'Asset List'!F23) -> West Kelso - East Kelso 115kV | D22: =IF('Asset List'!G23="","",'Asset List'!G23) -> West Kelso 115kV (CPUD), East Kelso 115kV (CPUD) | E22: =IF('Asset List'!I23="","",'Asset List'!I23) ->  | F22: =IF('Asset List'!K23="","",'Asset List'!K23) -> 115J3-LD (CPUD), 115J3-BD (CPUD), 115K6-LD (CPUD), 115K6-BD (CPUD) | G22: =IF('Asset List'!R23="","",'Asset List'!R23) -> 
A23: ='Asset List'!B24 -> Cowlitz County PUD No. 1 | B23: =IF('Asset List'!E24="","",'Asset List'!E24) -> Bakers Corner Tap (CPUD) to Lexington - Longview #1 115kV Line (BPA) | C23: =IF('Asset List'!F24="","",'Asset List'!F24) -> Bakers Corner Tap to Lexington - Longview #1 115kV | D23: =IF('Asset List'!G24="","",'Asset List'!G24) -> Bakers Corner 115kV (CPUD) | E23: =IF('Asset List'!I24="","",'Asset List'!I24) ->  | F23: =IF('Asset List'!K24="","",'Asset List'!K24) -> 115T2-LD (CPUD), 115T2-BD (CPUD) | G23: =IF('Asset List'!R24="","",'Asset List'!R24) -> 
A24: ='Asset List'!B25 -> Cowlitz County PUD No. 1 | B24: =IF('Asset List'!E25="","",'Asset List'!E25) -> Bakers Corner (CPUD) - Olive Way (CPUD) | C24: =IF('Asset List'!F25="","",'Asset List'!F25) -> Olive Way - Bakers Corner 115kV | D24: =IF('Asset List'!G25="","",'Asset List'!G25) -> Bakers Corner 115kV (CPUD), Olive Way 115kV (CPUD) | E24: =IF('Asset List'!I25="","",'Asset List'!I25) ->  | F24: =IF('Asset List'!K25="","",'Asset List'!K25) -> 115T3-LD (CPUD), 115T3-BD (CPUD), 115L6-LD (CPUD), 115L6-BD (CPUD) | G24: =IF('Asset List'!R25="","",'Asset List'!R25) -> 
A25: ='Asset List'!B26 -> Cowlitz County PUD No. 1 | B25: =IF('Asset List'!E26="","",'Asset List'!E26) -> Pacific Way substation loop-in (CPUD) on Lexington - Longview #1 115kV line (BPA) | C25: =IF('Asset List'!F26="","",'Asset List'!F26) ->  | D25: =IF('Asset List'!G26="","",'Asset List'!G26) -> Pacific Way 115kV (CPUD) | E25: =IF('Asset List'!I26="","",'Asset List'!I26) ->  | F25: =IF('Asset List'!K26="","",'Asset List'!K26) -> 115PW1-LD (CPUD), 115PW2-LD (CPUD) | G25: =IF('Asset List'!R26="","",'Asset List'!R26) -> 
A26: ='Asset List'!B27 -> Grays Harbor County PUD No. 1 | B26: =IF('Asset List'!E27="","",'Asset List'!E27) -> Cosmopolis- Aberdeen No.1 115 kV line | C26: =IF('Asset List'!F27="","",'Asset List'!F27) -> Cosmopolis- Aberdeen No. 1 115kV Line (GH) | D26: =IF('Asset List'!G27="","",'Asset List'!G27) ->  | E26: =IF('Asset List'!I27="","",'Asset List'!I27) ->  | F26: =IF('Asset List'!K27="","",'Asset List'!K27) ->  | G26: =IF('Asset List'!R27="","",'Asset List'!R27) -> No change to daily operations, except what would be required for BPA compliance
A27: ='Asset List'!B28 -> Grays Harbor County PUD No. 1 | B27: =IF('Asset List'!E28="","",'Asset List'!E28) -> Olympia Substation to Cosmopolis Substation 115 kV | C27: =IF('Asset List'!F28="","",'Asset List'!F28) -> Olympia-South EIma No. 1 115kV line (BPA) | D27: =IF('Asset List'!G28="","",'Asset List'!G28) -> South EIma (GH) | E27: =IF('Asset List'!I28="","",'Asset List'!I28) ->  | F27: =IF('Asset List'!K28="","",'Asset List'!K28) -> 2442 (GH) | G27: =IF('Asset List'!R28="","",'Asset List'!R28) -> 
A28: ='Asset List'!B29 -> Grays Harbor County PUD No. 1 | B28: =IF('Asset List'!E29="","",'Asset List'!E29) -> OlympiaSubstation to Cosmopolis Substation 115 kV | C28: =IF('Asset List'!F29="","",'Asset List'!F29) -> South Elma- Satsop Park No.1 115kV (BPA) | D28: =IF('Asset List'!G29="","",'Asset List'!G29) -> Satsop Park (GH) | E28: =IF('Asset List'!I29="","",'Asset List'!I29) ->  | F28: =IF('Asset List'!K29="","",'Asset List'!K29) -> 2447 (GH), 2500 (GH), 2510 (GH), 2520 (GH) | G28: =IF('Asset List'!R29="","",'Asset List'!R29) -> 
A29: ='Asset List'!B30 -> Grays Harbor County PUD No. 1 | B29: =IF('Asset List'!E30="","",'Asset List'!E30) -> Olympia Substation to Cosmopolis Substation 115 kV | C29: =IF('Asset List'!F30="","",'Asset List'!F30) -> Satsop Park- Cosmopolis No.1 115kV (BPA) | D29: =IF('Asset List'!G30="","",'Asset List'!G30) ->  | E29: =IF('Asset List'!I30="","",'Asset List'!I30) ->  | F29: =IF('Asset List'!K30="","",'Asset List'!K30) -> 2530 (GH), 2540 (GH), 2550 (GH) | G29: =IF('Asset List'!R30="","",'Asset List'!R30) -> 
A30: ='Asset List'!B31 -> Klickitat County PUD No. 1 | B30: =IF('Asset List'!E31="","",'Asset List'!E31) -> Harvalum – Linden Switchyard (KPUD) | C30: =IF('Asset List'!F31="","",'Asset List'!F31) -> Harvalum – Linden Switchyard 230 kV line (KPUD) | D30: =IF('Asset List'!G31="","",'Asset List'!G31) -> Linden Switchyard (LSY) 230 kV (KPUD) | E30: =IF('Asset List'!I31="","",'Asset List'!I31) ->  | F30: =IF('Asset List'!K31="","",'Asset List'!K31) -> LSY SW 230-1W (KPUD), LSY SW 230-2E (KPUD), LSY SW 230-2W (KPUD), LSY SW 230-3E (KPUD), LSY SW 230-3W (KPUD), LSY SW 230-4 (KPUD) | G30: =IF('Asset List'!R31="","",'Asset List'!R31) -> No change to daily operations, except what would be required for BPA compliance
A31: ='Asset List'!B32 -> Klickitat County PUD No. 1 | B31: =IF('Asset List'!E32="","",'Asset List'!E32) -> Linden Switchyard (KPUD) – EE Clouse (KPUD) | C31: =IF('Asset List'!F32="","",'Asset List'!F32) -> Linden Switchyard – EE Clouse 230 kV line (KPUD) | D31: =IF('Asset List'!G32="","",'Asset List'!G32) -> EE Clouse (EEC) 230 kV (KPUD) | E31: =IF('Asset List'!I32="","",'Asset List'!I32) ->  | F31: =IF('Asset List'!K32="","",'Asset List'!K32) -> EEC SW 230-1W (KPUD), EEC SW 230-2E (KPUD), EEC SW 230-1E (KPUD), EEC SW 230-2W (KPUD) | G31: =IF('Asset List'!R32="","",'Asset List'!R32) -> 
A32: ='Asset List'!B33 -> Klickitat County PUD No. 1 | B32: =IF('Asset List'!E33="","",'Asset List'!E33) -> Rock Creek – White Creek (KPUD) | C32: =IF('Asset List'!F33="","",'Asset List'!F33) -> Rock Creek – White Creek 230 kV line (KPUD) | D32: =IF('Asset List'!G33="","",'Asset List'!G33) -> White Creek (WCR) 230 kV (KPUD), White Creek (WCR) 34.5kV (KPUD) | E32: =IF('Asset List'!I33="","",'Asset List'!I33) ->  | F32: =IF('Asset List'!K33="","",'Asset List'!K33) -> WCR SW 230-0W (KPUD), WCR SW 230-3S (KPUD), WCR SW 230-4N (KPUD), WCR SW 230-1S (KPUD), WCR SW 230-6N (KPUD) | G32: =IF('Asset List'!R33="","",'Asset List'!R33) -> 
A33: ='Asset List'!B34 -> Klickitat County PUD No. 1 | B33: =IF('Asset List'!E34="","",'Asset List'!E34) -> White Creek (KPUD) – Harvest Wind (KPUD) | C33: =IF('Asset List'!F34="","",'Asset List'!F34) -> White Creek – Harvest Wind 230 kV line (KPUD) | D33: =IF('Asset List'!G34="","",'Asset List'!G34) -> Harvest Wind (HVW) 230 kV (KPUD) | E33: =IF('Asset List'!I34="","",'Asset List'!I34) ->  | F33: =IF('Asset List'!K34="","",'Asset List'!K34) -> HVW SW 230-1N (KPUD) | G33: =IF('Asset List'!R34="","",'Asset List'!R34) -> 
A34: ='Asset List'!B35 -> Klickitat County PUD No. 1 | B34: =IF('Asset List'!E35="","",'Asset List'!E35) -> Rock Creek - Energizer (KPUD) | C34: =IF('Asset List'!F35="","",'Asset List'!F35) -> Rock Creek – Energizer 230 kV line (KPUD) | D34: =IF('Asset List'!G35="","",'Asset List'!G35) -> Energizer (ENR) 230 kV (KPUD) | E34: =IF('Asset List'!I35="","",'Asset List'!I35) ->  | F34: =IF('Asset List'!K35="","",'Asset List'!K35) -> ENR SW 230-2N (KPUD), ENR SW 230-1S (KPUD), ENR SW 230-3W (KPUD) | G34: =IF('Asset List'!R35="","",'Asset List'!R35) -> 
A35: ='Asset List'!B36 -> Klickitat County PUD No. 1 | B35: =IF('Asset List'!E36="","",'Asset List'!E36) -> Energizer (KPUD) – Willis (KPUD) | C35: =IF('Asset List'!F36="","",'Asset List'!F36) -> Energizer – Willis 230 kV line (KPUD) | D35: =IF('Asset List'!G36="","",'Asset List'!G36) -> Willis (WLS) 230 kV (KPUD) | E35: =IF('Asset List'!I36="","",'Asset List'!I36) ->  | F35: =IF('Asset List'!K36="","",'Asset List'!K36) -> WLS SW 230-2N (KPUD), WLS SW 230-1S (KPUD), WLS SW 230-3W (KPUD) | G35: =IF('Asset List'!R36="","",'Asset List'!R36) -> No change to daily operations, except what would be required for BPA compliance
A36: ='Asset List'!B37 -> Klickitat County PUD No. 1 | B36: =IF('Asset List'!E37="","",'Asset List'!E37) -> Willis (KPUD)- Dooley (KPUD) | C36: =IF('Asset List'!F37="","",'Asset List'!F37) -> Willis – Dooley 230 kV line (KPUD) | D36: =IF('Asset List'!G37="","",'Asset List'!G37) -> Dooley (DLY) 230 kV (WPP) | E36: =IF('Asset List'!I37="","",'Asset List'!I37) ->  | F36: =IF('Asset List'!K37="","",'Asset List'!K37) -> DLY SW 230-1N (KPUD), DLY SW 230-3N (WPP), DLY SW 230-4N (WPP) | G36: =IF('Asset List'!R37="","",'Asset List'!R37) -> 
A37: ='Asset List'!B38 -> Lewis County PUD No. 1 | B37: =IF('Asset List'!E38="","",'Asset List'!E38) -> Cowlitz Falls-Glenoma (LCPUD) | C37: =IF('Asset List'!F38="","",'Asset List'!F38) -> Cowlitz Falls-Glenoma (LCPUD) | D37: =IF('Asset List'!G38="","",'Asset List'!G38) -> Cowlitz Falls 230 kV (LCPUD) | E37: =IF('Asset List'!I38="","",'Asset List'!I38) ->  | F37: =IF('Asset List'!K38="","",'Asset List'!K38) -> 230-36, 230-34, 230-37 (LCPUD), 189-1, 189-2, 189-3 (LCPUD) | G37: =IF('Asset List'!R38="","",'Asset List'!R38) -> 
A38: ='Asset List'!B39 -> Lewis County PUD No. 1 | B38: =IF('Asset List'!E39="","",'Asset List'!E39) -> Glenoma-Mossyrock (LCPUD) | C38: =IF('Asset List'!F39="","",'Asset List'!F39) -> Glenoma-Mossyrock (LCPUD) | D38: =IF('Asset List'!G39="","",'Asset List'!G39) -> Glenoma 230 kV (LCPUD) | E38: =IF('Asset List'!I39="","",'Asset List'!I39) ->  | F38: =IF('Asset List'!K39="","",'Asset List'!K39) -> 230-10M (LCPUD), 230-30, 230-32, 230-37 (LCPUD) | G38: =IF('Asset List'!R39="","",'Asset List'!R39) -> No change to daily operations, except what would be required for BPA compliance
A39: ='Asset List'!B40 -> Lower Valley Energy | B39: =IF('Asset List'!E40="","",'Asset List'!E40) -> Palisades – Snake River 115 kV | C39: =IF('Asset List'!F40="","",'Asset List'!F40) -> Palisades – Snake River 115 kV (LVE) | D39: =IF('Asset List'!G40="","",'Asset List'!G40) -> Snake River 115 kV (LVE) | E39: =IF('Asset List'!I40="","",'Asset List'!I40) ->  | F39: =IF('Asset List'!K40="","",'Asset List'!K40) -> SP721 (LVE), SP722 (LVE), 761 (USBR), 763 (USBR) | G39: =IF('Asset List'!R40="","",'Asset List'!R40) -> 
A40: ='Asset List'!B41 -> Lower Valley Energy | B40: =IF('Asset List'!E41="","",'Asset List'!E41) -> Snake River – Tincup 115 kV (LVE) | C40: =IF('Asset List'!F41="","",'Asset List'!F41) -> Snake River – Tincup 115 kV (LVE) | D40: =IF('Asset List'!G41="","",'Asset List'!G41) -> Tincup 115 kV (LVE) | E40: =IF('Asset List'!I41="","",'Asset List'!I41) ->  | F40: =IF('Asset List'!K41="","",'Asset List'!K41) -> TS725 (LVE), T724 (LVE), ST725 (LVE), ST727 (LVE) | G40: =IF('Asset List'!R41="","",'Asset List'!R41) -> 
A41: ='Asset List'!B42 -> Lower Valley Energy | B41: =IF('Asset List'!E42="","",'Asset List'!E42) -> Snake River – Dry Creek 115 kV (LVE) | C41: =IF('Asset List'!F42="","",'Asset List'!F42) -> Snake River – Freedom115 kV (LVE) | D41: =IF('Asset List'!G42="","",'Asset List'!G42) -> Dry Creek 115 kV (LVE) | E41: =IF('Asset List'!I42="","",'Asset List'!I42) ->  | F41: =IF('Asset List'!K42="","",'Asset List'!K42) -> DF827 (LVE), DF828 (LVE), F725, FS721, SF730 (LVE), SF731 (LVE), F726, FD722, FS723, FD724 | G41: =IF('Asset List'!R42="","",'Asset List'!R42) -> 
A42: ='Asset List'!B43 -> Lower Valley Energy | B42: =IF('Asset List'!E43="","",'Asset List'!E43) -> Dry Creek – Tincup 115 kV (LVE) | C42: =IF('Asset List'!F43="","",'Asset List'!F43) -> Dry Creek – Valley 115 kV (LVE) | D42: =IF('Asset List'!G43="","",'Asset List'!G43) ->  | E42: =IF('Asset List'!I43="","",'Asset List'!I43) ->  | F42: =IF('Asset List'!K43="","",'Asset List'!K43) -> TL730 (LVE), TL731 (LVE), DV730 (LVE), DV731 (LVE), VD881, VL882, LV824, L823, LV821 | G42: =IF('Asset List'!R43="","",'Asset List'!R43) -> 
A43: ='Asset List'!B44 -> Lower Valley Energy | B43: =IF('Asset List'!E44="","",'Asset List'!E44) -> Snake River – Jackson 115 kV (LVE) | C43: =IF('Asset List'!F44="","",'Asset List'!F44) -> Snake River – Hoback 115 kV (LVE) | D43: =IF('Asset List'!G44="","",'Asset List'!G44) -> Jackson 115 kV (LVE) | E43: =IF('Asset List'!I44="","",'Asset List'!I44) ->  | F43: =IF('Asset List'!K44="","",'Asset List'!K44) -> JR727 (LVE), JR728 (LVE), HS782, SH723 (LVE), SH724 (LVE), HR781, RH721, RJ722 | G43: =IF('Asset List'!R44="","",'Asset List'!R44) -> 
A44: ='Asset List'!B45 -> Lower Valley Energy | B44: =IF('Asset List'!E45="","",'Asset List'!E45) -> Jackson – Teton 115 kV (LVE) | C44: =IF('Asset List'!F45="","",'Asset List'!F45) -> Jackson - Wilson 115 kV (LVE) | D44: =IF('Asset List'!G45="","",'Asset List'!G45) ->  | E44: =IF('Asset List'!I45="","",'Asset List'!I45) ->  | F44: =IF('Asset List'!K45="","",'Asset List'!K45) -> 7494, JW723 (LVE), JW724 (LVE), WJ722, WT721 | G44: =IF('Asset List'!R45="","",'Asset List'!R45) -> 
A45: ='Asset List'!B46 -> Lower Valley Energy | B45: =IF('Asset List'!E46="","",'Asset List'!E46) -> Jackson – East Jackson 115 kV (LVE) | C45: =IF('Asset List'!F46="","",'Asset List'!F46) -> Jackson – East Jackson 115 kV (LVE) | D45: =IF('Asset List'!G46="","",'Asset List'!G46) -> E. Jackson 115 kV (LVE) | E45: =IF('Asset List'!I46="","",'Asset List'!I46) ->  | F45: =IF('Asset List'!K46="","",'Asset List'!K46) -> EJ728 (LVE), EJ729 (LVE), JE721 (LVE), JE722 (LVE) | G45: =IF('Asset List'!R46="","",'Asset List'!R46) -> 
A46: ='Asset List'!B47 -> Lower Valley Energy | B46: =IF('Asset List'!E47="","",'Asset List'!E47) -> East Jackson – Teton 115 kV | C46: =IF('Asset List'!F47="","",'Asset List'!F47) -> East Jackson – Crystal 115 kV (LVE) | D46: =IF('Asset List'!G47="","",'Asset List'!G47) ->  | E46: =IF('Asset List'!I47="","",'Asset List'!I47) ->  | F46: =IF('Asset List'!K47="","",'Asset List'!K47) -> 7580, EC721 (LVE), EC722 (LVE), CT723, CE722 | G46: =IF('Asset List'!R47="","",'Asset List'!R47) -> 
A47: ='Asset List'!B48 -> Northern Wasco | B47: =IF('Asset List'!E48="","",'Asset List'!E48) -> Big Eddy- The Dalles No 1 115kV line | C47: =IF('Asset List'!F48="","",'Asset List'!F48) -> Second Street –The Dalles Substation 115kV Line Segment (NWasco) | D47: =IF('Asset List'!G48="","",'Asset List'!G48) ->  | E47: =IF('Asset List'!I48="","",'Asset List'!I48) ->  | F47: =IF('Asset List'!K48="","",'Asset List'!K48) -> 2K-14 The Dalles side Disconnect 115kV (NWasco), 2K-12 Second Street Transformer No. 1 Disconnect 115kV (NWasco) | G47: =IF('Asset List'!R48="","",'Asset List'!R48) -> 
A48: ='Asset List'!B49 -> Northern Wasco | B48: =IF('Asset List'!E49="","",'Asset List'!E49) -> Big Eddy- The Dalles No 1 115kV line | C48: =IF('Asset List'!F49="","",'Asset List'!F49) -> Big Eddy – Seufert 115kV Line Segment (NWasco) | D48: =IF('Asset List'!G49="","",'Asset List'!G49) -> Seufert (NWasco) | E48: =IF('Asset List'!I49="","",'Asset List'!I49) ->  | F48: =IF('Asset List'!K49="","",'Asset List'!K49) -> 2K-22 Big Eddy Line Side Disconnect 115kV (NWasco), 2K-3 Seufert Transformer Disconnect 115kV (NWasco) | G48: =IF('Asset List'!R49="","",'Asset List'!R49) -> 
A49: ='Asset List'!B50 -> Northern Wasco | B49: =IF('Asset List'!E50="","",'Asset List'!E50) -> Big Eddy- The Dalles No 1 115kV line | C49: =IF('Asset List'!F50="","",'Asset List'!F50) -> Seufert - Columbia Heights 115kV Line Segment (NWasco) | D49: =IF('Asset List'!G50="","",'Asset List'!G50) -> Col. Heights (NWasco) | E49: =IF('Asset List'!I50="","",'Asset List'!I50) ->  | F49: =IF('Asset List'!K50="","",'Asset List'!K50) -> 2K-17 Seufert Line Side Disconnect 115kV (NWasco), 2K-505 Seufert Line Side Disconnect grounding Switch 115kV (NWasco), 2K-18 Seufert Line Side Tap Disconnect 115kV (NWasco), 2K-19 Columbia Heights Transformer Disconnect 115kV (NWasco), 2K-23 Columbia Heights Line Side Disconnect 115kV (NWasco) | G49: =IF('Asset List'!R50="","",'Asset List'!R50) -> 
A50: ='Asset List'!B51 -> Northern Wasco | B50: =IF('Asset List'!E51="","",'Asset List'!E51) -> Big Eddy- The Dalles No 1 115kV line | C50: =IF('Asset List'!F51="","",'Asset List'!F51) -> Columbia Heights – Three Mile Tap 115kV Line Tap (NWasco) | D50: =IF('Asset List'!G51="","",'Asset List'!G51) ->  | E50: =IF('Asset List'!I51="","",'Asset List'!I51) ->  | F50: =IF('Asset List'!K51="","",'Asset List'!K51) -> 2K-25 Columbia Heights Line Side Disconnect 115kV (NWasco), 2K-27 Three Mile Tap Disconnect 115kV (NWasco), 2K-16 Three Mile Tap Side Disconnect 115kV (NWasco), 2K-500 Three Mile Tap Side Disconnect grounding Switch 115kV (NWasco) | G50: =IF('Asset List'!R51="","",'Asset List'!R51) -> 
A51: ='Asset List'!B52 -> Northern Wasco | B51: =IF('Asset List'!E52="","",'Asset List'!E52) -> Big Eddy- The Dalles No 1 115kV line | C51: =IF('Asset List'!F52="","",'Asset List'!F52) -> Three Mile Tap –2nd Street 115kV Line Tap (NWasco) | D51: =IF('Asset List'!G52="","",'Asset List'!G52) -> 2nd Street (N. Wasco) | E51: =IF('Asset List'!I52="","",'Asset List'!I52) ->  | F51: =IF('Asset List'!K52="","",'Asset List'!K52) -> 2K-13 Three Mile Tap Structure Line Side Disconnect (Motor Operated) 115kV (NWasco), 2K-504 Three Mile Tap Side Disconnect grounding Switch 115kV (NWasco), 2K-11 Second Street Transformer No. 2 Disconnect 115kV (NWasco), 2K-26 Second Street Line Side Disconnect 115kV (NWasco) | G51: =IF('Asset List'!R52="","",'Asset List'!R52) -> No change to daily operations, except what would be required for BPA compliance
A52: ='Asset List'!B53 -> Okanogan County PUD No. 1 | B52: =IF('Asset List'!E53="","",'Asset List'!E53) -> Brewster (OKPUD) – Foster Creek (DCPUD) | C52: =IF('Asset List'!F53="","",'Asset List'!F53) -> Brewster – Foster Creek (DCPUD) 115 kV line (OKPUD) | D52: =IF('Asset List'!G53="","",'Asset List'!G53) -> Brewster 115 kV (OKPUD) | E52: =IF('Asset List'!I53="","",'Asset List'!I53) ->  | F52: =IF('Asset List'!K53="","",'Asset List'!K53) -> T-52 MBD ABD LSD, 5271, 5273, B-1295 (OKPUD) 5271, 5273 | G52: =IF('Asset List'!R53="","",'Asset List'!R53) -> No change to daily operations, except what would be required for BPA compliance
A53: ='Asset List'!B54 -> Okanogan County PUD No. 1 | B53: =IF('Asset List'!E54="","",'Asset List'!E54) -> Brewster (OKPUD) – Okanogan (OKPUD) | C53: =IF('Asset List'!F54="","",'Asset List'!F54) -> Brewster-Ophir 115 kV (OKPUD) | D53: =IF('Asset List'!G54="","",'Asset List'!G54) -> Okanogan 115kV (OKPUD) | E53: =IF('Asset List'!I54="","",'Asset List'!I54) ->  | F53: =IF('Asset List'!K54="","",'Asset List'!K54) -> B-1482 MBD ABD LSD, T-51 MBD ABD LSD, B-453 (Ophir Tap), Ophir-Okanogan 115 kV line (OKPUD), B-455 (Ophir Tap) | G53: =IF('Asset List'!R54="","",'Asset List'!R54) -> 
A54: ='Asset List'!B55 -> Okanogan County PUD No. 1 | B54: =IF('Asset List'!E55="","",'Asset List'!E55) -> Okanogan (OKDPUD) – Twisp (OKPUD | C54: =IF('Asset List'!F55="","",'Asset List'!F55) -> Okanogan – Twisp 115kV line (OKPUD) | D54: =IF('Asset List'!G55="","",'Asset List'!G55) -> Twisp 115kV | E54: =IF('Asset List'!I55="","",'Asset List'!I55) ->  | F54: =IF('Asset List'!K55="","",'Asset List'!K55) -> TW-TS-4, TW-TS-5, TW-TS-6, B-1486 MBD ABD LSD, T-103 (Malott Tap), T-106 (Malott Tap), B-103 (Winthrop Tap – BPA), | G54: =IF('Asset List'!R55="","",'Asset List'!R55) -> 
A55: ='Asset List'!B56 -> Okanogan County PUD No. 1 | B55: =IF('Asset List'!E56="","",'Asset List'!E56) -> Brewster (OKPUD) – Twisp (OKPUD) | C55: =IF('Asset List'!F56="","",'Asset List'!F56) -> Brewster – Pateros 115 kV line (OKPUD) | D55: =IF('Asset List'!G56="","",'Asset List'!G56) ->  | E55: =IF('Asset List'!I56="","",'Asset List'!I56) ->  | F55: =IF('Asset List'!K56="","",'Asset List'!K56) -> TW-TS-7, TW-TS-8, TW-TS-9, T-111 (Pateros Tap), Pateros-Twisp 115 kV line (OKPUD), T-112 (Pateros Tap), T-113 (Pateros Tap), T-53 MBD ABD LSD | G55: =IF('Asset List'!R56="","",'Asset List'!R56) -> 
A56: ='Asset List'!B57 -> Okanogan County PUD No. 1 | B56: =IF('Asset List'!E57="","",'Asset List'!E57) -> Okanogan (OKPUD) – East Omak (BPA) | C56: =IF('Asset List'!F57="","",'Asset List'!F57) -> Okanogan – CIPV 115 kV line (OKPUD) | D56: =IF('Asset List'!G57="","",'Asset List'!G57) ->  | E56: =IF('Asset List'!I57="","",'Asset List'!I57) ->  | F56: =IF('Asset List'!K57="","",'Asset List'!K57) -> B77 MBD ABD LSD, B-1488 MBD ABD LSD, B-1480 MBD ABD LSD, T-090 (CIPV Tap), CIPV – Sandflat 115 kV line (OKPUD), T-091 (CIPV Tap), T-119 (Sandflat Tap), Sandflat - East Omak 115 kV line (OKPUD), T-121 (Sandflat Tap), T-120 (Sandflat Tap) | G56: =IF('Asset List'!R57="","",'Asset List'!R57) -> 
A57: ='Asset List'!B58 -> Pend Oreille County PUD No. 1 | B57: =IF('Asset List'!E58="","",'Asset List'!E58) -> Box Canyon tap to Colville – Boundary No 1 115kV line (POPD) | C57: =IF('Asset List'!F58="","",'Asset List'!F58) -> Box Canyon tap 115kV line | D57: =IF('Asset List'!G58="","",'Asset List'!G58) -> Box Canyon Substation 115kV (POPD) | E57: =IF('Asset List'!I58="","",'Asset List'!I58) ->  | F57: =IF('Asset List'!K58="","",'Asset List'!K58) -> PB6451 (POPD), PB6453 (POPD), PB6455 (POPD) | G57: =IF('Asset List'!R58="","",'Asset List'!R58) -> 
A58: ='Asset List'!B59 -> Pend Oreille County PUD No. 1 | B58: =IF('Asset List'!E59="","",'Asset List'!E59) -> Box Canyon Substation (POPD) – Usk Switchyard (POPD) | C58: =IF('Asset List'!F59="","",'Asset List'!F59) -> Box Canyon – Usk 115kV line | D58: =IF('Asset List'!G59="","",'Asset List'!G59) -> Usk Switchyard 115kV (POPD) | E58: =IF('Asset List'!I59="","",'Asset List'!I59) ->  | F58: =IF('Asset List'!K59="","",'Asset List'!K59) -> PU6551 (POPD), PU6553 (POPD), PU6555 (POPD), PB6151 (POPD), PB6153 (POPD), PB6251 (POPD), PB6253 (POPD), PB6351 (POPD), PB6353 (POPD) | G58: =IF('Asset List'!R59="","",'Asset List'!R59) -> Since they have been their own TOP, they may want to maintain some functional operation consistant with what they do today. This will be determined as we work through the TOP requirement checklist.
A59: ='Asset List'!B60 -> Pend Oreille County PUD No. 1 | B59: =IF('Asset List'!E60="","",'Asset List'!E60) -> Usk Switchyard (POPD) – Usk Substation (BPA) | C59: =IF('Asset List'!F60="","",'Asset List'!F60) -> Usk – Usk 115kV line | D59: =IF('Asset List'!G60="","",'Asset List'!G60) -> Usk Substation 115kV (POPD), Usk Substation 230kV (POPUD) | E59: =IF('Asset List'!I60="","",'Asset List'!I60) ->  | F59: =IF('Asset List'!K60="","",'Asset List'!K60) -> PU62252 (POPD), PU82052 (POPD), A960 (POPD), PU6550 (POPD) | G59: =IF('Asset List'!R60="","",'Asset List'!R60) -> 
A60: ='Asset List'!B61 -> Pend Oreille County PUD No. 1 | B60: =IF('Asset List'!E61="","",'Asset List'!E61) -> Usk Switchyard (POPD) – Pine Street (POPD) | C60: =IF('Asset List'!F61="","",'Asset List'!F61) -> Usk – Pine Street 115kV line | D60: =IF('Asset List'!G61="","",'Asset List'!G61) -> Pine Street Substation 115kV (POPD) | E60: =IF('Asset List'!I61="","",'Asset List'!I61) ->  | F60: =IF('Asset List'!K61="","",'Asset List'!K61) -> PP6651 (POPD), PP6653 (POPD), PP6751 (POPD), PP6753 (POPD), PP6851 (POPD), PP6853 (POPD), PP6951 (POPD), PP6953 (POPD), PU6651 (POPD), PU6653 (POPD) | G60: =IF('Asset List'!R61="","",'Asset List'!R61) -> 
A61: ='Asset List'!B62 -> Umatilla Electric Cooperative | B61: =IF('Asset List'!E62="","",'Asset List'!E62) -> McNary - Hermiston Generating Company 230 kV | C61: =IF('Asset List'!F62="","",'Asset List'!F62) -> McNary-Hermiston Generating Plant 230kV | D61: =IF('Asset List'!G62="","",'Asset List'!G62) ->  | E61: =IF('Asset List'!I62="","",'Asset List'!I62) ->  | F61: =IF('Asset List'!K62="","",'Asset List'!K62) ->  | G61: =IF('Asset List'!R62="","",'Asset List'!R62) -> No change to daily operations, except what would be required for BPA compliance
A62: ='Asset List'!B63 -> Whatcom County PUD No. 1 | B62: =IF('Asset List'!E63="","",'Asset List'!E63) -> Bellingham (BPA) - Refinery (Whatcom) 115kV | C62: =IF('Asset List'!F63="","",'Asset List'!F63) -> Bellingham (BPA) - Refinery 115kV Line (Whatcom) | D62: =IF('Asset List'!G63="","",'Asset List'!G63) -> Refinery 115kV (Whatcom) | E62: =IF('Asset List'!I63="","",'Asset List'!I63) ->  | F62: =IF('Asset List'!K63="","",'Asset List'!K63) -> 5504 (Whatcom), 5505 (Whatcom), 5517 (Whatcom), 5518 (Whatcom), 5519 (Whatcom), 5520 (Whatcom), 5521 (Whatcom), 5522 (Whatcom), 5523 (Whatcom), 5524 (Whatcom) | G62: =IF('Asset List'!R63="","",'Asset List'!R63) -> 
A63: ='Asset List'!B64 -> Benton County PUD No. 1 | B63: =IF('Asset List'!E64="","",'Asset List'!E64) ->  | C63: =IF('Asset List'!F64="","",'Asset List'!F64) ->  | D63: =IF('Asset List'!G64="","",'Asset List'!G64) ->  | E63: =IF('Asset List'!I64="","",'Asset List'!I64) ->  | F63: =IF('Asset List'!K64="","",'Asset List'!K64) ->  | G63: =IF('Asset List'!R64="","",'Asset List'!R64) -> 
A64: ='Asset List'!B65 -> Consumers Power, Inc. | B64: =IF('Asset List'!E65="","",'Asset List'!E65) -> 1. Harrisburg - Greenberry (CPI) | C64: =IF('Asset List'!F65="","",'Asset List'!F65) ->  | D64: =IF('Asset List'!G65="","",'Asset List'!G65) ->  | E64: =IF('Asset List'!I65="","",'Asset List'!I65) ->  | F64: =IF('Asset List'!K65="","",'Asset List'!K65) ->  | G64: =IF('Asset List'!R65="","",'Asset List'!R65) -> 
A65: ='Asset List'!B66 -> Consumers Power, Inc. | B65: =IF('Asset List'!E66="","",'Asset List'!E66) -> 2. Airport Substation (Albany-Lebanon No. | C65: =IF('Asset List'!F66="","",'Asset List'!F66) ->  | D65: =IF('Asset List'!G66="","",'Asset List'!G66) -> Airport 115kV | E65: =IF('Asset List'!I66="","",'Asset List'!I66) ->  | F65: =IF('Asset List'!K66="","",'Asset List'!K66) -> Two future breakers, | G65: =IF('Asset List'!R66="","",'Asset List'!R66) -> 
A66: ='Asset List'!B67 -> Eugene Water and Electric Board | B66: =IF('Asset List'!E67="","",'Asset List'!E67) -> 1. Willakenzie - McKenzie - Coburg - River Loop - Spring Creek - Irvington - Prairie 115 kV | C66: =IF('Asset List'!F67="","",'Asset List'!F67) -> Willakenzie - McKenzie 115kV, McKenzie - Coburg 115kV, Coburg - Spring Creek 115kV, Spring Creek - Irving tap 115kV | D66: =IF('Asset List'!G67="","",'Asset List'!G67) -> McKenzie 115kV, Spring Creek 115kV, Coburg 115kV | E66: =IF('Asset List'!I67="","",'Asset List'!I67) ->  | F66: =IF('Asset List'!K67="","",'Asset List'!K67) -> 9 | G66: =IF('Asset List'!R67="","",'Asset List'!R67) -> 
A67: ='Asset List'!B68 -> Eugene Water and Electric Board | B67: =IF('Asset List'!E68="","",'Asset List'!E68) -> 2. Prairie - Jessen - Danebo - Lane (BPA) 115 kV | C67: =IF('Asset List'!F68="","",'Asset List'!F68) -> Prairie - Jessen 115kV, Jessen - Danebo 115kV, Danebo - Lane (BPA) 115kV | D67: =IF('Asset List'!G68="","",'Asset List'!G68) -> Prairie 115kV, Jessen 115kV, Danebo 115kV | E67: =IF('Asset List'!I68="","",'Asset List'!I68) ->  | F67: =IF('Asset List'!K68="","",'Asset List'!K68) -> 5 | G67: =IF('Asset List'!R68="","",'Asset List'!R68) -> 
A68: ='Asset List'!B69 -> Eugene Water and Electric Board | B68: =IF('Asset List'!E69="","",'Asset List'!E69) -> 3. Lane (BPA) - Crow - Willow Creek - Hundai - Westmoreland 115 kV | C68: =IF('Asset List'!F69="","",'Asset List'!F69) -> Westmoreland - Willow Creek 115kV, Willow Creek-Hundai #1, Willow Creek-Hundai #2, Willow Creek - Lane (BPA) | D68: =IF('Asset List'!G69="","",'Asset List'!G69) -> Willow Creek 115kV, Hundai 115kV | E68: =IF('Asset List'!I69="","",'Asset List'!I69) ->  | F68: =IF('Asset List'!K69="","",'Asset List'!K69) -> 5 | G68: =IF('Asset List'!R69="","",'Asset List'!R69) -> 
A69: ='Asset List'!B70 -> Eugene Water and Electric Board | B69: =IF('Asset List'!E70="","",'Asset List'!E70) -> 4. Westmoreland - Seneca - Eugene (BPA) 115 kV | C69: =IF('Asset List'!F70="","",'Asset List'!F70) -> Westmoreland - Seneca 115kV, Seneca - Bertelson 115kV | D69: =IF('Asset List'!G70="","",'Asset List'!G70) -> Seneca 115, Bertelson 115 | E69: =IF('Asset List'!I70="","",'Asset List'!I70) ->  | F69: =IF('Asset List'!K70="","",'Asset List'!K70) -> 5 | G69: =IF('Asset List'!R70="","",'Asset List'!R70) -> 
A70: ='Asset List'!B71 -> Eugene Water and Electric Board | B70: =IF('Asset List'!E71="","",'Asset List'!E71) -> 5. Currin - Willakenzie - Cal Young - Santa Clara - Prairie 115 kV | C70: =IF('Asset List'!F71="","",'Asset List'!F71) -> Currin - Willakenzie 115kV, Willakenzie - Cal Young 115kV, Cal Young - Santa Clara 115kV, Santa Clara - Prairie 115kV | D70: =IF('Asset List'!G71="","",'Asset List'!G71) -> Willakenzie 115kV, Cal Young 115kV, Santa Clara 115kV | E70: =IF('Asset List'!I71="","",'Asset List'!I71) ->  | F70: =IF('Asset List'!K71="","",'Asset List'!K71) -> 8 | G70: =IF('Asset List'!R71="","",'Asset List'!R71) -> 
A71: ='Asset List'!B72 -> Eugene Water and Electric Board | B71: =IF('Asset List'!E72="","",'Asset List'!E72) -> 6. Currin - Bloomburg - Goshen - Alvey (BPA) 115 kV | C71: =IF('Asset List'!F72="","",'Asset List'!F72) -> Currin - Alvey (BPA) 115kV | D71: =IF('Asset List'!G72="","",'Asset List'!G72) -> Currin 115kV | E71: =IF('Asset List'!I72="","",'Asset List'!I72) ->  | F71: =IF('Asset List'!K72="","",'Asset List'!K72) -> 1 | G71: =IF('Asset List'!R72="","",'Asset List'!R72) -> 
A72: ='Asset List'!B73 -> Eugene Water and Electric Board | B72: =IF('Asset List'!E73="","",'Asset List'!E73) -> 7. Curren - Laurel - Hilyard - Monroe - Dillard - Jefferson - Westmoreland 115 kV | C72: =IF('Asset List'!F73="","",'Asset List'!F73) -> Currin - Laurel 115kV, Laurel - Hilyard 115kV, Hillyard - Dillard 115kV, Hilyard - Monroe 115kV, Monroe - Jefferson 115kV, Jefferson - Westmoreland 115kV | D72: =IF('Asset List'!G73="","",'Asset List'!G73) -> Laurel 115kV, Dillard 115kV, Hilyard 115kV, Monroe 115kV, Jefferson 115kV, Westmoreland 115kV | E72: =IF('Asset List'!I73="","",'Asset List'!I73) ->  | F72: =IF('Asset List'!K73="","",'Asset List'!K73) -> 8 | G72: =IF('Asset List'!R73="","",'Asset List'!R73) -> 
A73: ='Asset List'!B74 -> Eugene Water and Electric Board | B73: =IF('Asset List'!E74="","",'Asset List'!E74) -> 8. Currin - Willamette - Adams - Bethel - Eugene (BPA) 115 kV | C73: =IF('Asset List'!F74="","",'Asset List'!F74) -> Currin - Willamette 115kV, Willamette - University 115kV, University - Adams 115kV, Adams - Bethel 115kV, Bethel - Eugene (BPA) 115kV | D73: =IF('Asset List'!G74="","",'Asset List'!G74) -> Willamete 115kV, University 115kV, Adams 115kV, Bethel 115kV | E73: =IF('Asset List'!I74="","",'Asset List'!I74) ->  | F73: =IF('Asset List'!K74="","",'Asset List'!K74) -> 11 | G73: =IF('Asset List'!R74="","",'Asset List'!R74) -> 
A74: ='Asset List'!B75 -> Eugene Water and Electric Board | B74: =IF('Asset List'!E75="","",'Asset List'!E75) -> 9. Willamette Tap - Oakway - Delta - River Road - Eugene (BPA) 115 kV | C74: =IF('Asset List'!F75="","",'Asset List'!F75) -> Willamette Tap - Oakway 115kV, Oakway - Delta 115kV, Delta - River Road 115kV, River Road - Eugene (BPA)115kV | D74: =IF('Asset List'!G75="","",'Asset List'!G75) -> Oakway 115kV, Delta 115kV, RiverRoad 115kV | E74: =IF('Asset List'!I75="","",'Asset List'!I75) ->  | F74: =IF('Asset List'!K75="","",'Asset List'!K75) ->  | G74: =IF('Asset List'!R75="","",'Asset List'!R75) -> 
A75: ='Asset List'!B76 -> Eugene Water and Electric Board | B75: =IF('Asset List'!E76="","",'Asset List'!E76) -> 10. Currin - Hayden Bridge Switching Station - Weyerhaeuser No. 3 - Weyerhaeuser No. 1 - Weyerhaeuser No. 2 - Thurston 115 kV | C75: =IF('Asset List'!F76="","",'Asset List'!F76) -> Currin - Hayden Bridge Switching Station 115 kV, Hayden Bridge Switching Station - Weyerhaeuser No. 3 115 kV, Weyerhaeuser No. 3 - Weyerhaeuser No. 1 115 kV, Weyerhaeuser No. 1 -Weyerhaeuser No. 2 115 kV, Weyerhaeuser No. 2 - Thurston 115 kV | D75: =IF('Asset List'!G76="","",'Asset List'!G76) -> Hayden Bridge Switching Station 115kV, Weyerhaeuser No. 3 115kV, Weyerhaeuser No. 1 115kV, Weyerhaeuser No. 2 115 kV, Thurston | E75: =IF('Asset List'!I76="","",'Asset List'!I76) ->  | F75: =IF('Asset List'!K76="","",'Asset List'!K76) -> 6 | G75: =IF('Asset List'!R76="","",'Asset List'!R76) -> 
A76: ='Asset List'!B77 -> Oregon Trail Electric Coop. | B76: =IF('Asset List'!E77="","",'Asset List'!E77) -> 1. Hines – West John Day - Quartz 138 kV | C76: =IF('Asset List'!F77="","",'Asset List'!F77) -> Hines-Quartz 138 kV | D76: =IF('Asset List'!G77="","",'Asset List'!G77) ->  | E76: =IF('Asset List'!I77="","",'Asset List'!I77) ->  | F76: =IF('Asset List'!K77="","",'Asset List'!K77) ->  | G76: =IF('Asset List'!R77="","",'Asset List'!R77) -> OTEC is currently pursuing TOP Services from Idaho Power, not BPA. Further, the only item inventoried for TOP is leased to BPA so we wouldn't charge them for its operation.
A77: ='Asset List'!B78 -> Snohomish County PUD | B77: =IF('Asset List'!E78="","",'Asset List'!E78) -> 1. Murray - East Arlington 115 kV | C77: =IF('Asset List'!F78="","",'Asset List'!F78) -> Murray - East Arlington 115 kV | D77: =IF('Asset List'!G78="","",'Asset List'!G78) ->  | E77: =IF('Asset List'!I78="","",'Asset List'!I78) ->  | F77: =IF('Asset List'!K78="","",'Asset List'!K78) -> ? | G77: =IF('Asset List'!R78="","",'Asset List'!R78) -> 
A78: ='Asset List'!B79 -> Snohomish County PUD | B78: =IF('Asset List'!E79="","",'Asset List'!E79) -> 2. East Arlington- Stimson Crossing 115 kV | C78: =IF('Asset List'!F79="","",'Asset List'!F79) -> East Arlington- Stimson Crossing | D78: =IF('Asset List'!G79="","",'Asset List'!G79) ->  | E78: =IF('Asset List'!I79="","",'Asset List'!I79) ->  | F78: =IF('Asset List'!K79="","",'Asset List'!K79) -> ? | G78: =IF('Asset List'!R79="","",'Asset List'!R79) -> 
A79: ='Asset List'!B80 -> Snohomish County PUD | B79: =IF('Asset List'!E80="","",'Asset List'!E80) -> 3. Stimson Crossing - N. Stanwood-Lake Goodwin- Camano Sub 115 kV | C79: =IF('Asset List'!F80="","",'Asset List'!F80) -> Stanwood-Lake Goodwin, Lake Goodwin - Camano Sub | D79: =IF('Asset List'!G80="","",'Asset List'!G80) -> Lake Goodwin | E79: =IF('Asset List'!I80="","",'Asset List'!I80) ->  | F79: =IF('Asset List'!K80="","",'Asset List'!K80) -> ? | G79: =IF('Asset List'!R80="","",'Asset List'!R80) -> 
A80: ='Asset List'!B81 -> Snohomish County PUD | B80: =IF('Asset List'!E81="","",'Asset List'!E81) -> 4. Murray-Smokey Pt - Stimson Crossing 115 kV | C80: =IF('Asset List'!F81="","",'Asset List'!F81) -> Murray-Smokey Pt , Smokey Pt - Stimson Crossing | D80: =IF('Asset List'!G81="","",'Asset List'!G81) -> Smokey Pt | E80: =IF('Asset List'!I81="","",'Asset List'!I81) ->  | F80: =IF('Asset List'!K81="","",'Asset List'!K81) -> ? | G80: =IF('Asset List'!R81="","",'Asset List'!R81) -> 
A81: ='Asset List'!B82 -> Snohomish County PUD | B81: =IF('Asset List'!E82="","",'Asset List'!E82) -> 5. Stimson Crossing -N. Marysville-Delta 115 kV | C81: =IF('Asset List'!F82="","",'Asset List'!F82) -> Marysville-Delta | D81: =IF('Asset List'!G82="","",'Asset List'!G82) ->  | E81: =IF('Asset List'!I82="","",'Asset List'!I82) ->  | F81: =IF('Asset List'!K82="","",'Asset List'!K82) -> ? | G81: =IF('Asset List'!R82="","",'Asset List'!R82) -> 
A82: ='Asset List'!B83 -> Snohomish County PUD | B82: =IF('Asset List'!E83="","",'Asset List'!E83) -> 6. Murray - Granite Tap - Lake Stevens-Snohomish 115 kV | C82: =IF('Asset List'!F83="","",'Asset List'!F83) -> Murray - Granite Tap - Lake Stevens, Lake Stevens -Snohomish | D82: =IF('Asset List'!G83="","",'Asset List'!G83) -> Granite Tap | E82: =IF('Asset List'!I83="","",'Asset List'!I83) ->  | F82: =IF('Asset List'!K83="","",'Asset List'!K83) -> ? | G82: =IF('Asset List'!R83="","",'Asset List'!R83) -> 
A83: ='Asset List'!B84 -> Snohomish County PUD | B83: =IF('Asset List'!E84="","",'Asset List'!E84) -> 7. Delta-Tulalip- Stimsons Crossing 115 kV | C83: =IF('Asset List'!F84="","",'Asset List'!F84) -> Delta-Tulalip- Stimsons Crossing | D83: =IF('Asset List'!G84="","",'Asset List'!G84) -> Tulalip | E83: =IF('Asset List'!I84="","",'Asset List'!I84) ->  | F83: =IF('Asset List'!K84="","",'Asset List'!K84) -> ? | G83: =IF('Asset List'!R84="","",'Asset List'!R84) -> 
A84: ='Asset List'!B85 -> Snohomish County PUD | B84: =IF('Asset List'!E85="","",'Asset List'!E85) -> 9. BPA Snohomish-Beverly Park #3 (S-BP#3) 115 kV | C84: =IF('Asset List'!F85="","",'Asset List'!F85) -> BPA Snohomish-Beverly Park #3 (S-BP#3) | D84: =IF('Asset List'!G85="","",'Asset List'!G85) ->  | E84: =IF('Asset List'!I85="","",'Asset List'!I85) ->  | F84: =IF('Asset List'!K85="","",'Asset List'!K85) -> ? | G84: =IF('Asset List'!R85="","",'Asset List'!R85) -> 
A85: ='Asset List'!B86 -> Snohomish County PUD | B85: =IF('Asset List'!E86="","",'Asset List'!E86) -> 10. Beverly Park - Casino - Paine Field 115 kV | C85: =IF('Asset List'!F86="","",'Asset List'!F86) -> Beverly Park - Casino, Casino - Paine Field | D85: =IF('Asset List'!G86="","",'Asset List'!G86) -> Casino | E85: =IF('Asset List'!I86="","",'Asset List'!I86) ->  | F85: =IF('Asset List'!K86="","",'Asset List'!K86) -> ? | G85: =IF('Asset List'!R86="","",'Asset List'!R86) -> 
A86: ='Asset List'!B87 -> Snohomish County PUD | B86: =IF('Asset List'!E87="","",'Asset List'!E87) -> 11. Paine Field - Boeing Sub 115 kV | C86: =IF('Asset List'!F87="","",'Asset List'!F87) -> Paine Field - Boeing Sub | D86: =IF('Asset List'!G87="","",'Asset List'!G87) ->  | E86: =IF('Asset List'!I87="","",'Asset List'!I87) ->  | F86: =IF('Asset List'!K87="","",'Asset List'!K87) -> ? | G86: =IF('Asset List'!R87="","",'Asset List'!R87) -> 
A87: ='Asset List'!B88 -> Snohomish County PUD | B87: =IF('Asset List'!E88="","",'Asset List'!E88) -> 12. Paine Field - Lake Serene-Halls Lake 115 kV | C87: =IF('Asset List'!F88="","",'Asset List'!F88) -> Paine Field - Lake Serene, Lake Serene-Halls Lake | D87: =IF('Asset List'!G88="","",'Asset List'!G88) -> Lake Serene | E87: =IF('Asset List'!I88="","",'Asset List'!I88) ->  | F87: =IF('Asset List'!K88="","",'Asset List'!K88) -> ? | G87: =IF('Asset List'!R88="","",'Asset List'!R88) -> 
A88: ='Asset List'!B89 -> Snohomish County PUD | B88: =IF('Asset List'!E89="","",'Asset List'!E89) -> 13. BPA Snohomish-Fobes-Delta 115 kV | C88: =IF('Asset List'!F89="","",'Asset List'!F89) -> BPA Snohomish-Fobes, Fobes-Delta | D88: =IF('Asset List'!G89="","",'Asset List'!G89) -> Fobes | E88: =IF('Asset List'!I89="","",'Asset List'!I89) ->  | F88: =IF('Asset List'!K89="","",'Asset List'!K89) -> ? | G88: =IF('Asset List'!R89="","",'Asset List'!R89) -> 
A89: ='Asset List'!B90 -> Snohomish County PUD | B89: =IF('Asset List'!E90="","",'Asset List'!E90) -> 14. Delta - Navy Sub 115 kV | C89: =IF('Asset List'!F90="","",'Asset List'!F90) -> Delta - Navy Sub | D89: =IF('Asset List'!G90="","",'Asset List'!G90) ->  | E89: =IF('Asset List'!I90="","",'Asset List'!I90) ->  | F89: =IF('Asset List'!K90="","",'Asset List'!K90) -> ? | G89: =IF('Asset List'!R90="","",'Asset List'!R90) -> 
A90: ='Asset List'!B91 -> Snohomish County PUD | B90: =IF('Asset List'!E91="","",'Asset List'!E91) -> 15. Scott - Everett - Navy 115 kV | C90: =IF('Asset List'!F91="","",'Asset List'!F91) -> Scott - Everett, Everett - Navy | D90: =IF('Asset List'!G91="","",'Asset List'!G91) -> Everett | E90: =IF('Asset List'!I91="","",'Asset List'!I91) ->  | F90: =IF('Asset List'!K91="","",'Asset List'!K91) -> ? | G90: =IF('Asset List'!R91="","",'Asset List'!R91) -> 
A91: ='Asset List'!B92 -> Snohomish County PUD | B91: =IF('Asset List'!E92="","",'Asset List'!E92) -> 16. BPA Snohomish-Everett 115 kV | C91: =IF('Asset List'!F92="","",'Asset List'!F92) -> BPA Snohomish-Everett | D91: =IF('Asset List'!G92="","",'Asset List'!G92) ->  | E91: =IF('Asset List'!I92="","",'Asset List'!I92) ->  | F91: =IF('Asset List'!K92="","",'Asset List'!K92) -> ? | G91: =IF('Asset List'!R92="","",'Asset List'!R92) -> 
A92: ='Asset List'!B93 -> Snohomish County PUD | B92: =IF('Asset List'!E93="","",'Asset List'!E93) -> 17. Scott - Waterfront - Snohomish 115 kV | C92: =IF('Asset List'!F93="","",'Asset List'!F93) -> Scott - Waterfront, Waterfront - Snohomish | D92: =IF('Asset List'!G93="","",'Asset List'!G93) -> Waterfront | E92: =IF('Asset List'!I93="","",'Asset List'!I93) ->  | F92: =IF('Asset List'!K93="","",'Asset List'!K93) -> ? | G92: =IF('Asset List'!R93="","",'Asset List'!R93) -> 
A93: ='Asset List'!B94 -> Snohomish County PUD | B93: =IF('Asset List'!E94="","",'Asset List'!E94) -> 18. BPA Snohomish-Olivia - Paine Field 115 kV | C93: =IF('Asset List'!F94="","",'Asset List'!F94) -> BPA Snohomish-Olivia, Olivia - Paine Field | D93: =IF('Asset List'!G94="","",'Asset List'!G94) -> Olivia | E93: =IF('Asset List'!I94="","",'Asset List'!I94) ->  | F93: =IF('Asset List'!K94="","",'Asset List'!K94) -> ? | G93: =IF('Asset List'!R94="","",'Asset List'!R94) -> 
A94: ='Asset List'!B95 -> Snohomish County PUD | B94: =IF('Asset List'!E95="","",'Asset List'!E95) -> 19. Beverly Park - Swamp Creek - Snoking 115 kV | C94: =IF('Asset List'!F95="","",'Asset List'!F95) -> Beverly Park - Swamp Creek, Swamp Creek - Snoking | D94: =IF('Asset List'!G95="","",'Asset List'!G95) -> Swamp Creek | E94: =IF('Asset List'!I95="","",'Asset List'!I95) ->  | F94: =IF('Asset List'!K95="","",'Asset List'!K95) -> ? | G94: =IF('Asset List'!R95="","",'Asset List'!R95) -> 
A95: ='Asset List'!B96 -> Snohomish County PUD | B95: =IF('Asset List'!E96="","",'Asset List'!E96) -> 20. BPA Snohomish - Boeing Sub 115 kV | C95: =IF('Asset List'!F96="","",'Asset List'!F96) -> BPA Snohomish - Boeing Sub | D95: =IF('Asset List'!G96="","",'Asset List'!G96) ->  | E95: =IF('Asset List'!I96="","",'Asset List'!I96) ->  | F95: =IF('Asset List'!K96="","",'Asset List'!K96) -> ? | G95: =IF('Asset List'!R96="","",'Asset List'!R96) -> 
A96: ='Asset List'!B97 -> Snohomish County PUD | B96: =IF('Asset List'!E97="","",'Asset List'!E97) -> 21. Boeing Sub - 20th Avenue Sub 115 kV | C96: =IF('Asset List'!F97="","",'Asset List'!F97) -> Boeing Sub - 20th Avenue Sub | D96: =IF('Asset List'!G97="","",'Asset List'!G97) ->  | E96: =IF('Asset List'!I97="","",'Asset List'!I97) ->  | F96: =IF('Asset List'!K97="","",'Asset List'!K97) -> ? | G96: =IF('Asset List'!R97="","",'Asset List'!R97) -> 
A97: ='Asset List'!B98 -> Snohomish County PUD | B97: =IF('Asset List'!E98="","",'Asset List'!E98) -> 22. BPA Snohomish-JHP-Snohomish 115 kV | C97: =IF('Asset List'!F98="","",'Asset List'!F98) -> BPA Snohomish-JHP, JHP-Snohomish | D97: =IF('Asset List'!G98="","",'Asset List'!G98) -> JHP | E97: =IF('Asset List'!I98="","",'Asset List'!I98) ->  | F97: =IF('Asset List'!K98="","",'Asset List'!K98) -> ? | G97: =IF('Asset List'!R98="","",'Asset List'!R98) -> 
A98: ='Asset List'!B99 -> Snohomish County PUD | B98: =IF('Asset List'!E99="","",'Asset List'!E99) -> 23. Halls Lake Sub - Ballinger - Westgate 115 kV | C98: =IF('Asset List'!F99="","",'Asset List'!F99) -> Halls Lake Sub - Ballinger, Ballinger - Westgate | D98: =IF('Asset List'!G99="","",'Asset List'!G99) -> Ballinger | E98: =IF('Asset List'!I99="","",'Asset List'!I99) ->  | F98: =IF('Asset List'!K99="","",'Asset List'!K99) -> ? | G98: =IF('Asset List'!R99="","",'Asset List'!R99) -> 
A99: ='Asset List'!B100 -> Snohomish County PUD | B99: =IF('Asset List'!E100="","",'Asset List'!E100) -> 24. Halls Lake Sub - 5 Corners - Lynnwood 115 kV | C99: =IF('Asset List'!F100="","",'Asset List'!F100) -> Halls Lake Sub - 5 Corners, 5 Corners - Lynnwood | D99: =IF('Asset List'!G100="","",'Asset List'!G100) -> 5 Corners | E99: =IF('Asset List'!I100="","",'Asset List'!I100) ->  | F99: =IF('Asset List'!K100="","",'Asset List'!K100) -> ? | G99: =IF('Asset List'!R100="","",'Asset List'!R100) -> 
A100: ='Asset List'!B101 -> Snohomish County PUD | B100: =IF('Asset List'!E101="","",'Asset List'!E101) -> 25. Snoking - Thrashers Corner- Halls Lake Sub 115 kV | C100: =IF('Asset List'!F101="","",'Asset List'!F101) -> Snoking - Thrashers Corner, Thrashers Corner - Halls Lake Sub | D100: =IF('Asset List'!G101="","",'Asset List'!G101) -> Thrashers Corner | E100: =IF('Asset List'!I101="","",'Asset List'!I101) ->  | F100: =IF('Asset List'!K101="","",'Asset List'!K101) -> ? | G100: =IF('Asset List'!R101="","",'Asset List'!R101) -> 
A101: ='Asset List'!B102 -> Snohomish County PUD | B101: =IF('Asset List'!E102="","",'Asset List'!E102) -> 26. Snoking - Canyon Park Sub - Halls Lake Sub 115 kV | C101: =IF('Asset List'!F102="","",'Asset List'!F102) -> Snoking - Canyon Park Sub, Canyon Park Sub - Halls Lake Sub | D101: =IF('Asset List'!G102="","",'Asset List'!G102) -> Canyon Park Sub | E101: =IF('Asset List'!I102="","",'Asset List'!I102) ->  | F101: =IF('Asset List'!K102="","",'Asset List'!K102) -> ? | G101: =IF('Asset List'!R102="","",'Asset List'!R102) -> 
A102: ='Asset List'!B103 -> Snohomish County PUD | B102: =IF('Asset List'!E103="","",'Asset List'!E103) -> 27. Halls Lake - Brightwater 115 kV | C102: =IF('Asset List'!F103="","",'Asset List'!F103) -> Halls Lake - Brightwater 115kV | D102: =IF('Asset List'!G103="","",'Asset List'!G103) ->  | E102: =IF('Asset List'!I103="","",'Asset List'!I103) ->  | F102: =IF('Asset List'!K103="","",'Asset List'!K103) -> ? | G102: =IF('Asset List'!R103="","",'Asset List'!R103) -> 
A103: ='Asset List'!B104 -> Snohomish County PUD | B103: =IF('Asset List'!E104="","",'Asset List'!E104) -> 28. Snohomish (SNOH S1) - Jackson 115 kV | C103: =IF('Asset List'!F104="","",'Asset List'!F104) -> Snohomish-Jackson 115kV | D103: =IF('Asset List'!G104="","",'Asset List'!G104) ->  | E103: =IF('Asset List'!I104="","",'Asset List'!I104) ->  | F103: =IF('Asset List'!K104="","",'Asset List'!K104) -> ? | G103: =IF('Asset List'!R104="","",'Asset List'!R104) -> 
A104: ='Asset List'!B105 -> Snohomish County PUD | B104: =IF('Asset List'!E105="","",'Asset List'!E105) -> 29. Snoking (SNOk S1) - North Creek 115 kV | C104: =IF('Asset List'!F105="","",'Asset List'!F105) -> Snoking (SNOk S1) - North Creek 115kV | D104: =IF('Asset List'!G105="","",'Asset List'!G105) ->  | E104: =IF('Asset List'!I105="","",'Asset List'!I105) ->  | F104: =IF('Asset List'!K105="","",'Asset List'!K105) -> ? | G104: =IF('Asset List'!R105="","",'Asset List'!R105) -> 
A105: ='Asset List'!B106 -> Snohomish County PUD | B105: =IF('Asset List'!E106="","",'Asset List'!E106) -> 30. Snoking (SNOk S3) - Brightwater 115 kV | C105: =IF('Asset List'!F106="","",'Asset List'!F106) -> Snoking (SNOk S3) - Brightwater 115kV | D105: =IF('Asset List'!G106="","",'Asset List'!G106) ->  | E105: =IF('Asset List'!I106="","",'Asset List'!I106) ->  | F105: =IF('Asset List'!K106="","",'Asset List'!K106) -> ? | G105: =IF('Asset List'!R106="","",'Asset List'!R106) -> No change to daily operations, except what would be required for BPA compliance
A106: ='Asset List'!B107 -> Springfield Utility Board | B106: =IF('Asset List'!E107="","",'Asset List'!E107) -> 1. Springfield Interconnected Network 115 kV | C106: =IF('Asset List'!F107="","",'Asset List'!F107) -> Alvey - Springfield No. 1 115kV | D106: =IF('Asset List'!G107="","",'Asset List'!G107) -> Springfield 115kV | E106: =IF('Asset List'!I107="","",'Asset List'!I107) ->  | F106: =IF('Asset List'!K107="","",'Asset List'!K107) -> 2S612, CS-2S616* | G106: =IF('Asset List'!R107="","",'Asset List'!R107) -> 
A107: ='Asset List'!B108 -> Springfield Utility Board | B107: =IF('Asset List'!E108="","",'Asset List'!E108) -> 1. Springfield Interconnected Network 115 kV | C107: =IF('Asset List'!F108="","",'Asset List'!F108) -> Springfield - Tenth Street 115kV | D107: =IF('Asset List'!G108="","",'Asset List'!G108) -> Tenth Street 115kV | E107: =IF('Asset List'!I108="","",'Asset List'!I108) ->  | F107: =IF('Asset List'!K108="","",'Asset List'!K108) -> 2S601, 2S618 | G107: =IF('Asset List'!R108="","",'Asset List'!R108) -> 
A108: ='Asset List'!B109 -> Springfield Utility Board | B108: =IF('Asset List'!E109="","",'Asset List'!E109) -> 1. Springfield Interconnected Network 115 kV | C108: =IF('Asset List'!F109="","",'Asset List'!F109) -> Alvey - Tenth Street 115kV | D108: =IF('Asset List'!G109="","",'Asset List'!G109) ->  | E108: =IF('Asset List'!I109="","",'Asset List'!I109) ->  | F108: =IF('Asset List'!K109="","",'Asset List'!K109) -> 2S197 | G108: =IF('Asset List'!R109="","",'Asset List'!R109) -> 
A109: ='Asset List'!B110 -> Springfield Utility Board | B109: =IF('Asset List'!E110="","",'Asset List'!E110) -> 1. Springfield Interconnected Network 115 kV | C109: =IF('Asset List'!F110="","",'Asset List'!F110) -> Tenth Street - Laura 115kV | D109: =IF('Asset List'!G110="","",'Asset List'!G110) -> Laura Street 115kV | E109: =IF('Asset List'!I110="","",'Asset List'!I110) ->  | F109: =IF('Asset List'!K110="","",'Asset List'!K110) -> 2S198, 2S691 | G109: =IF('Asset List'!R110="","",'Asset List'!R110) -> 
A110: ='Asset List'!B111 -> Springfield Utility Board | B110: =IF('Asset List'!E111="","",'Asset List'!E111) -> 1. Springfield Interconnected Network 115 kV | C110: =IF('Asset List'!F111="","",'Asset List'!F111) -> Laura - Gateway Tap 115kV | D110: =IF('Asset List'!G111="","",'Asset List'!G111) ->  | E110: =IF('Asset List'!I111="","",'Asset List'!I111) ->  | F110: =IF('Asset List'!K111="","",'Asset List'!K111) -> 2S159 | G110: =IF('Asset List'!R111="","",'Asset List'!R111) -> 
A111: ='Asset List'!B112 -> Springfield Utility Board | B111: =IF('Asset List'!E112="","",'Asset List'!E112) -> 1. Springfield Interconnected Network 115 kV | C111: =IF('Asset List'!F112="","",'Asset List'!F112) -> McKenzie - Gateway Tap 115kV Tap | D111: =IF('Asset List'!G112="","",'Asset List'!G112) ->  | E111: =IF('Asset List'!I112="","",'Asset List'!I112) ->  | F111: =IF('Asset List'!K112="","",'Asset List'!K112) ->  | G111: =IF('Asset List'!R112="","",'Asset List'!R112) -> 
A112: ='Asset List'!B113 -> Springfield Utility Board | B112: =IF('Asset List'!E113="","",'Asset List'!E113) -> 1. Springfield Interconnected Network 115 kV | C112: =IF('Asset List'!F113="","",'Asset List'!F113) -> Gateway - Gateway Tap 115kV | D112: =IF('Asset List'!G113="","",'Asset List'!G113) -> Gateway 115kV | E112: =IF('Asset List'!I113="","",'Asset List'!I113) ->  | F112: =IF('Asset List'!K113="","",'Asset List'!K113) -> 2S276 | G112: =IF('Asset List'!R113="","",'Asset List'!R113) -> 
A113: ='Asset List'!B114 -> Springfield Utility Board | B113: =IF('Asset List'!E114="","",'Asset List'!E114) -> 1. Springfield Interconnected Network 115 kV | C113: =IF('Asset List'!F114="","",'Asset List'!F114) -> Gateway - Olympic 115kV | D113: =IF('Asset List'!G114="","",'Asset List'!G114) -> Olympic 115kV | E113: =IF('Asset List'!I114="","",'Asset List'!I114) ->  | F113: =IF('Asset List'!K114="","",'Asset List'!K114) -> 2S282, 2S621 | G113: =IF('Asset List'!R114="","",'Asset List'!R114) -> 
A114: ='Asset List'!B115 -> Springfield Utility Board | B114: =IF('Asset List'!E115="","",'Asset List'!E115) -> 1. Springfield Interconnected Network 115 kV | C114: =IF('Asset List'!F115="","",'Asset List'!F115) -> Springfield - Olympic 115kV | D114: =IF('Asset List'!G115="","",'Asset List'!G115) ->  | E114: =IF('Asset List'!I115="","",'Asset List'!I115) ->  | F114: =IF('Asset List'!K115="","",'Asset List'!K115) -> 2S625, 2S607 | G114: =IF('Asset List'!R115="","",'Asset List'!R115) -> 
A115: ='Asset List'!B116 -> Springfield Utility Board | B115: =IF('Asset List'!E116="","",'Asset List'!E116) -> 1. Springfield Interconnected Network 115 kV | C115: =IF('Asset List'!F116="","",'Asset List'!F116) -> Jasper - Olympic 115kV | D115: =IF('Asset List'!G116="","",'Asset List'!G116) -> Jasper 115kV | E115: =IF('Asset List'!I116="","",'Asset List'!I116) ->  | F115: =IF('Asset List'!K116="","",'Asset List'!K116) -> 2S632, 2S104 | G115: =IF('Asset List'!R116="","",'Asset List'!R116) -> 
A116: ='Asset List'!B117 -> Springfield Utility Board | B116: =IF('Asset List'!E117="","",'Asset List'!E117) -> 1. Springfield Interconnected Network 115 kV | C116: =IF('Asset List'!F117="","",'Asset List'!F117) -> Mt. Vernon - Jasper 115kV | D116: =IF('Asset List'!G117="","",'Asset List'!G117) -> Mt. Vernon 115kV | E116: =IF('Asset List'!I117="","",'Asset List'!I117) ->  | F116: =IF('Asset List'!K117="","",'Asset List'!K117) -> 2S146, 2S128 | G116: =IF('Asset List'!R117="","",'Asset List'!R117) -> No change to daily operations, except what would be required for BPA compliance
A117: ='Asset List'!B118 -> TransAlta Centralia Generation, LLC | B117: =IF('Asset List'!E118="","",'Asset List'!E118) -> 1. Paul Substation-Centralia PH 500 kV | C117: =IF('Asset List'!F118="","",'Asset List'!F118) -> Paul Substation-Centralia PH No. 1 500kV | D117: =IF('Asset List'!G118="","",'Asset List'!G118) ->  | E117: =IF('Asset List'!I118="","",'Asset List'!I118) ->  | F117: =IF('Asset List'!K118="","",'Asset List'!K118) -> 4542, 4544, CBS13 | G117: =IF('Asset List'!R118="","",'Asset List'!R118) -> No change to daily operations, except what would be required for BPA compliance
A118: ='Asset List'!B119 -> TransAlta Centralia Generation, LLC | B118: =IF('Asset List'!E119="","",'Asset List'!E119) -> 1. Paul Substation-Centralia PH 500 kV | C118: =IF('Asset List'!F119="","",'Asset List'!F119) -> Paul Substation-Centralia PH No. 2 500kV | D118: =IF('Asset List'!G119="","",'Asset List'!G119) ->  | E118: =IF('Asset List'!I119="","",'Asset List'!I119) ->  | F118: =IF('Asset List'!K119="","",'Asset List'!K119) -> 4536 | G118: =IF('Asset List'!R119="","",'Asset List'!R119) -> 
A119: ='Asset List'!B120 -> US DOE Richland | B119: =IF('Asset List'!E120="","",'Asset List'!E120) -> 1. Midway – HEW (A7) – Ashe # 1 | C119: =IF('Asset List'!F120="","",'Asset List'!F120) -> Midway – HEW (A7) – Ashe # 1 230kV | D119: =IF('Asset List'!G120="","",'Asset List'!G120) -> A9 230kV, A7 230kV | E119: =IF('Asset List'!I120="","",'Asset List'!I120) ->  | F119: =IF('Asset List'!K120="","",'Asset List'!K120) ->  | G119: =IF('Asset List'!R120="","",'Asset List'!R120) -> Will no longer be a TO once Midway-Ashe is complete
A120: ='Asset List'!B121 -> US DOE Richland | B120: =IF('Asset List'!E121="","",'Asset List'!E121) -> 2. Midway – HEW (A6 & A8) – Ashe # 1 | C120: =IF('Asset List'!F121="","",'Asset List'!F121) -> Midway – HEW (A6 & A8) – Ashe # 1 230kV | D120: =IF('Asset List'!G121="","",'Asset List'!G121) -> A8 230kV, A6 230kV | E120: =IF('Asset List'!I121="","",'Asset List'!I121) ->  | F120: =IF('Asset List'!K121="","",'Asset List'!K121) -> A-386, A-384, A-362, A-366, A-364 | G120: =IF('Asset List'!R121="","",'Asset List'!R121) -> 
A121: ='Asset List'!B122 -> US Naval Base Kitsap | B121: =IF('Asset List'!E122="","",'Asset List'!E122) -> 1. Sub X – Sub H 115 kV | C121: =IF('Asset List'!F122="","",'Asset List'!F122) ->  | D121: =IF('Asset List'!G122="","",'Asset List'!G122) -> Station H | E121: =IF('Asset List'!I122="","",'Asset List'!I122) ->  | F121: =IF('Asset List'!K122="","",'Asset List'!K122) ->  | G121: =IF('Asset List'!R122="","",'Asset List'!R122) -> No change to daily operations, except what would be required for BPA compliance
A122: ='Asset List'!B123 -> US Naval Base Kitsap | B122: =IF('Asset List'!E123="","",'Asset List'!E123) -> 2. Sub H - Sub FG 115 kV | C122: =IF('Asset List'!F123="","",'Asset List'!F123) -> Station H-Station FG 115kV | D122: =IF('Asset List'!G123="","",'Asset List'!G123) -> Station GF | E122: =IF('Asset List'!I123="","",'Asset List'!I123) ->  | F122: =IF('Asset List'!K123="","",'Asset List'!K123) ->  | G122: =IF('Asset List'!R123="","",'Asset List'!R123) -> 
A123: ='Asset List'!B124 -> US Naval Base Kitsap | B123: =IF('Asset List'!E124="","",'Asset List'!E124) -> 3. Kitsap - Bangor - Foss Corner 115 kV | C123: =IF('Asset List'!F124="","",'Asset List'!F124) ->  | D123: =IF('Asset List'!G124="","",'Asset List'!G124) -> Bangor (Substation 1) | E123: =IF('Asset List'!I124="","",'Asset List'!I124) ->  | F123: =IF('Asset List'!K124="","",'Asset List'!K124) ->  | G123: =IF('Asset List'!R124="","",'Asset List'!R124) -> 
